Cogmind - Beta 11 @@@ ROGUE MODE // 2022.04.02 @ 19:51:59 Player: aoemica Result: Assimilated 0b10! Performance ------------- Evolutions (9) 4500 Regions Visited (41) 8200 Robots Destroyed (364) 1820 Value Destroyed (9685) 9685 Prototype IDs (126) 2520 Alien Tech Used (5) 1000 Bonus (14402) 14402 TOTAL SCORE: 42127 Bonus ------- High Alert Combat Kills 239 Follower Combat Kills 1768 Entered Garrisons 800 Used RIF Installer 1500 Network Hubs Disabled 800 Built Enhanced Grunts 300 A7 Reached Mainframe 300 Met MAIN.C 5000 Used 0b10 Conduit 2000 Win 3000 Friendly Fire -1305 Cogmind --------- Core Integrity 1508/1600 Matter 280/300 Energy 188/200 System Corruption 4% Temperature Cool (28) Movement Flying (17) Location 0b10 Command Parts ------- > --- POWER (2) -------- Micro Antimatter Reactor Micro Antimatter Reactor > --- PROPULSION (8) --- Improved Cesium-ion Thruster Cooled Nuclear Pulse Thruster Cooled Nuclear Pulse Thruster Electron Diverter Improved Diametric Drive Impulse Thruster Array Cooled Q-thruster > --- UTILITY (13) ----- Advanced Power Amplifier Advanced Power Amplifier Large Storage Unit Advanced Gravity Neutralizer Enhanced Optical Array Long-range Sensor Array Experimental Signal Interpreter Advanced Reaction Control System Medium Regenerative Plating Hacking Suite Improved Hacking Suite Advanced Hacking Suite > --- WEAPON (2) ------- Sigix Broadsword > --- INVENTORY (15) --- Micro Fission Core Cooled Impulse Thruster Cooled Q-thruster Experimental Energy Well (600) Structural Scanner Advanced Transmission Jammer Antimissile System Navigation Efficiency Matrix Terrabomb Heavy Neutron Cannon Improved Potential Cannon Peak State ------------ > --- POWER ------------ Micro Antimatter Reactor Micro Antimatter Reactor > --- PROPULSION ------- Improved Cesium-ion Thruster Cooled Nuclear Pulse Thruster Cooled Nuclear Pulse Thruster Field Propulsion Array Electron Diverter Improved Diametric Drive Cooled Q-thruster > --- UTILITY ---------- Advanced Power Amplifier Advanced Power Amplifier Large Storage Unit Advanced Gravity Neutralizer Enhanced Optical Array Long-range Sensor Array Experimental Signal Interpreter Advanced Reaction Control System Improved Utility Shielding Medium Regenerative Plating Hacking Suite Improved Hacking Suite Advanced Hacking Suite > --- WEAPON ----------- Sigix Broadsword > --- INVENTORY -------- Micro Fission Core Cooled Impulse Thruster Impulse Thruster Array Cooled Q-thruster Advanced Power Amplifier Experimental Energy Well Structural Scanner Advanced Transmission Jammer Antimissile System Navigation Efficiency Matrix Terrabomb Heavy Neutron Cannon Improved Potential Cannon [Rating: 192] Favorites ----------- Power Micro Nuclear Core Engine Improved Ion Engine Power Core Micro Nuclear Core Reactor Micro Antimatter Reactor Propulsion Improved Flight Unit Treads Light Treads Leg Aluminum Leg Wheel Compact Wheel Flight Unit Improved Flight Unit Utility Improved Hacking Suite Device Advanced Sensor Array Storage Large Storage Unit Processor Enhanced Optical Array Hackware Improved Hacking Suite Protection Improved Light Armor Plating Weapon Remote Datajack Energy Gun Particle Gun Energy Cannon Heavy Ion Cannon Ballistic Gun Improved Assault Rifle Ballistic Cannon Light Cannon Launcher Mini Grenade Launcher Special Weapon Remote Datajack Slashing Weapon Sigix Broadsword Piercing Weapon Heavy Pick Build | -11 -10 -10 -9 -9 -8 -8 -8 -7 -7 -7 -7 -7 -7 -7 -7 -6 -6 -6 -6 -6 -6 -6 -6 -5 -5 -5 -5 -5 -5 -5 -4 -4 -4 -4 -3 -3 -2 -2 -2 -1 -1 ------- Run | Scr Mat Min Mat Min Mat Gar Mat Fac Was Fac Gar Fac Low Low Zio Pro Fac Was Fac Ext Cet Arc Hub Fac Was Fac Gar Fac Upp Upp Fac Was Fac Gar Res Qua Res Tes Sec Acc Com Slots Evolved 18 | . . . 2 . 2 . . 2 . . . . . . . . 2 . . . . . . 2 . . . . . . 2 . . . 2 . 2 . . 2 . Power 1 | . . . . . . . . . . . . . . . . . . . . . . . . . . . . . . . 1 . . . . . . . . . . Propulsion 6 | . . . . . 1 . . 1 . . . . . . . . . . . . . . . 1 . . . . . . 1 . . . . . 1 . . 1 . Utility 11 | . . . 2 . 1 . . 1 . . . . . . . . 2 . . . . . . 1 . . . . . . . . . . 2 . 1 . . 1 . Weapon . | . . . . . . . . . . . . . . . . . . . . . . . . . . . . . . . . . . . . . . . . . . Parts Attached 580 | . 10 7 37 3 28 10 28 11 . 16 4 25 4 3 1 2 19 2 7 23 10 4 10 36 2 18 6 18 4 3 27 . 32 2 26 28 17 12 31 41 13 Power 40 | . 2 . 5 . 3 1 3 1 . . . 1 . . . . 1 . . . . . . 2 1 2 2 . . . 1 . 5 . 4 2 1 . . 2 1 Engine 14 | . 2 . 5 . 3 1 2 . . . . . . . . . . . . . . . . . . . 1 . . . . . . . . . . . . . . Core 19 | . . . . . . . 1 1 . . . 1 . . . . 1 . . . . . . 2 1 2 1 . . . 1 . 5 . 3 . . . . . . Reactor 7 | . . . . . . . . . . . . . . . . . . . . . . . . . . . . . . . . . . . 1 2 1 . . 2 1 Propulsion 80 | . 3 2 17 . 11 3 14 1 . . . 3 . . . . . . . . 1 . . 4 . 1 . 2 . . 1 . 2 . 1 5 1 1 1 5 1 Treads 45 | . 3 2 17 . 9 3 11 . . . . . . . . . . . . . . . . . . . . . . . . . . . . . . . . . . Leg . | . . . . . . . . . . . . . . . . . . . . . . . . . . . . . . . . . . . . . . . . . . Wheel 2 | . . . . . 2 . . . . . . . . . . . . . . . . . . . . . . . . . . . . . . . . . . . . Hover . | . . . . . . . . . . . . . . . . . . . . . . . . . . . . . . . . . . . . . . . . . . Flight 33 | . . . . . . . 3 1 . . . 3 . . . . . . . . 1 . . 4 . 1 . 2 . . 1 . 2 . 1 5 1 1 1 5 1 Utility 291 | . 3 3 8 . 7 2 8 7 . 10 . 16 4 3 1 2 18 . 5 10 7 4 10 27 1 15 2 13 2 2 11 . 17 2 10 11 6 5 9 26 4 Device 164 | . 2 2 2 . 2 1 2 1 . 4 . 6 2 2 . 1 7 . 2 5 2 2 7 16 1 11 1 7 2 1 8 . 12 1 8 6 3 2 5 24 4 Storage 15 | . 1 . 1 . 1 . . . . . . . . . . . 1 . . . . . . 1 . 1 . 2 . . . . . . . 2 . 1 2 2 . Processor 6 | . . . . . . . 1 . . . . 1 . . . . 1 . . . . . . 2 . . . . . . 1 . . . . . . . . . . Hackware 13 | . . . 1 . . . . 3 . . . 1 . . . . 2 . 1 . . 1 . . . . . 1 . . 1 . 1 . . . 1 . . . . Protection 93 | . . 1 4 . 4 1 5 3 . 6 . 8 2 1 1 1 7 . 2 5 5 1 3 8 . 3 1 3 . 1 1 . 4 1 2 3 2 2 2 . . Artifact . | . . . . . . . . . . . . . . . . . . . . . . . . . . . . . . . . . . . . . . . . . . Weapon 169 | . 2 2 7 3 7 4 3 2 . 6 4 5 . . . . . 2 2 13 2 . . 3 . . 2 3 2 1 14 . 8 . 11 10 9 6 21 8 7 Energy Gun 6 | . 2 1 2 . . . . . . . . . . . . . . . . . . . . . . . . . . . 1 . . . . . . . . . . Energy Cannon 53 | . . . 2 1 4 3 . . . . . . . . . . . . . . . . . . . . . 1 1 1 5 . 1 . 4 6 5 2 10 4 3 Ballistic Gun 6 | . . . 2 . . . 1 . . 1 . . . . . . . . . . 1 . . . . . . . . . 1 . . . . . . . . . . Ballistic Cannon 4 | . . 1 . 1 2 . . . . . . . . . . . . . . . . . . . . . . . . . . . . . . . . . . . . Launcher 27 | . . . 1 1 1 1 1 . . 2 2 2 . . . . . . . 6 . . . . . . 1 1 . . . . 2 . 4 1 . 1 . . . Special Weapon 29 | . . . . . . . . 1 . 3 2 3 . . . . . . 1 3 . . . 2 . . 1 . . . 6 . 5 . 2 . . . . . . Impact Weapon . | . . . . . . . . . . . . . . . . . . . . . . . . . . . . . . . . . . . . . . . . . . Slashing Weapon 30 | . . . . . . . . . . . . . . . . . . . . . . . . . . . . . 1 . . . . . . 3 4 3 11 4 4 Piercing Weapon 14 | . . . . . . . 1 1 . . . . . . . . . 2 1 4 1 . . 1 . . . 1 . . 1 . . . 1 . . . . . . Special Melee Weapon . | . . . . . . . . . . . . . . . . . . . . . . . . . . . . . . . . . . . . . . . . . . Unidentified Prototypes 10 | . . . 1 . . . . . . . . . . . . . . . . . 3 . . . . . . . . . . . . . . 2 . 2 1 1 . Corrupted Parts 1 | . . . . . . 1 . . . . . . . . . . . . . . . . . . . . . . . . . . . . . . . . . . . System Corruption 10 | . . . . . . 10 . . . . . . . . . . . . . . . . . . . . . . . . . . . . . . . . . . . Parts Lost 25 | . . 5 5 . 2 2 . . . . . 2 . . . 1 . . . . . . . 1 . . 1 . . . 1 . 1 . . . . . . 1 3 Power 6 | . . . 2 . . . . . . . . . . . . . . . . . . . . 1 . . 1 . . . . . 1 . . . . . . . 1 Propulsion 6 | . . 2 1 . 2 . . . . . . . . . . . . . . . . . . . . . . . . . . . . . . . . . . 1 . Utility 9 | . . 1 1 . . 2 . . . . . 1 . . . 1 . . . . . . . . . . . . . . 1 . . . . . . . . . 2 Weapon 4 | . . 2 1 . . . . . . . . 1 . . . . . . . . . . . . . . . . . . . . . . . . . . . . . Highest Loss Streak 3 | . . 3 3 . 2 1 . . . . . 1 . . . 1 . . . . . . . 1 . . 1 . . . 1 . 1 . . . . . . 1 2 To Critical Strikes . | . . . . . . . . . . . . . . . . . . . . . . . . . . . . . . . . . . . . . . . . . . Average Slot Usage (%) 97 | . 99 99 99 100 95 97 99 100 100 98 100 98 100 100 100 99 98 100 100 100 99 99 100 98 97 99 100 93 94 94 98 94 99 94 99 89 90 91 90 91 90 Engine 3 | . 14 14 10 11 8 9 8 . . . . . . . . . . . . . . . . . . . 4 . . . 5 5 3 5 . . . . . . . Core 3 | . . . . . . . . 7 7 7 7 7 7 7 7 7 5 6 6 6 6 6 6 5 2 4 . 5 5 5 4 5 6 5 6 2 . . . . . Reactor 1 | . . . . . . . . . . . . . . . . . . . . . . . . . . . . . . . . . . . 2 5 8 8 8 7 8 Treads 6 | . 23 28 21 22 21 27 26 . . . . . . . . . . . . . . . . . . . . . . . . . . . . . . . . . . Flight 20 | . . . . . . . . 30 30 30 30 29 30 30 30 30 26 26 26 26 26 26 26 28 29 28 29 28 29 29 31 31 30 31 28 22 26 26 26 27 27 Device 10 | . 13 12 11 11 9 8 9 6 7 7 . 7 7 6 5 6 10 . 5 5 . 7 5 10 14 13 11 10 11 7 9 10 11 5 18 18 16 16 16 19 19 Storage 4 | . 14 14 11 11 9 9 9 . . . . . . . . . . . . . . . . . . . 5 5 5 5 5 5 5 5 4 4 4 4 4 4 4 Processor 6 | . . . . . . . . 7 7 7 7 6 7 7 7 7 9 13 13 13 13 13 13 11 11 11 11 11 11 11 10 10 10 10 9 9 8 8 8 8 8 Hackware 13 | . . . 11 11 9 9 9 23 23 23 23 23 23 23 23 22 18 20 20 20 20 20 20 16 11 11 11 11 11 11 9 5 9 10 9 9 12 13 13 12 12 Protection 10 | . . 1 10 11 15 16 16 7 7 6 15 6 6 7 8 7 12 20 13 13 19 11 13 11 14 13 11 10 11 14 9 10 8 15 9 8 8 8 8 8 6 Energy Gun 1 | . 14 14 7 . . . . . . . . . . . . . . . . . . . . . . . . . . . . . . . . . . . . . . Energy Cannon 2 | . . . 2 10 14 16 10 . . . . . . . . . . . . . . . . . . . . . . . . . . . . . . . . . . Ballistic Gun 1 | . 14 4 10 7 . . 7 . . . . . . . . . . . . . . . . . . . . . . . . . . . . . . . . . . Special Weapon 2 | . . . . . . . . . . 4 6 6 7 7 7 7 6 6 6 5 6 6 6 5 5 5 4 . . . 4 5 5 . . . . . . . . Piercing Weapon 3 | . . . . . . . . 6 7 7 7 7 7 7 7 7 6 6 6 5 5 6 6 4 5 5 5 5 5 5 4 5 5 5 4 2 . . . . . Naked Turns . | . . . . . . . . . . . . . . . . . . . . . . . . . . . . . . . . . . . . . . . . . . Heaviest Build 77 | 12 34 39 40 33 55 55 50 15 13 20 20 17 17 17 16 16 20 19 20 23 20 18 25 27 25 34 42 25 24 31 32 29 31 35 46 55 59 62 65 77 68 Greatest Support 77 | 20 40 40 44 44 66 62 62 20 20 20 20 20 20 20 20 20 20 20 20 20 20 20 36 36 25 41 41 26 26 26 32 32 33 36 48 56 61 64 68 71 77 Greatest Overweight (x) 5 | . . . 1 . 4 . 2 . . . . . . . . . 1 . . 1 . 5 1 1 . 1 1 1 . 1 1 . . 1 1 . 1 1 1 1 . Average Overweight (x) . | . . . . . . . . . . . . . . . . . . . . . . 3 . . . . . . . . . . . . . . . . . . . Largest Inventory Capacity 25 | 8 15 15 15 15 15 15 15 15 5 5 5 5 5 5 5 5 25 5 5 5 5 5 5 5 5 10 10 25 10 10 10 10 10 10 10 15 15 15 15 15 15 Average Capacity 10 | 8 13 15 15 15 15 15 15 5 5 5 5 5 5 5 5 5 5 5 5 5 5 5 5 5 5 5 10 10 10 10 10 10 10 10 10 14 15 15 15 15 15 Most Carried 15 | 6 15 15 15 15 15 15 15 7 5 5 5 5 5 5 5 5 5 5 5 5 5 5 5 5 5 10 10 10 10 10 10 10 10 10 10 15 15 15 15 15 15 Average Carried 9 | 6 12 12 14 14 14 15 14 5 5 4 5 4 5 5 5 5 4 5 5 4 4 5 5 4 5 5 9 9 9 9 9 10 9 10 9 14 14 14 14 14 14 Final Capacity 15 | 8 15 15 15 15 15 15 15 5 5 5 5 5 5 5 5 5 5 5 5 5 5 5 5 5 5 10 10 10 10 10 10 10 10 10 10 15 15 15 15 15 15 Final Carried 15 | 6 15 10 15 15 15 15 8 5 5 5 5 5 5 5 5 5 5 5 5 5 5 5 5 5 5 10 9 10 10 10 10 10 10 10 10 15 15 14 14 15 12 Class Distribution -------------------- 29% | Hacker-Ninja 21% | Hacker-Sprinter 19% | Scavenger-Mutant 11% | Hacker-Scout 7% | Mutant 6% | Hacker-Assassin Dominant Class ---------------- Scavenger-Mutant | -10/Materials Mutant | -10/Mines Scavenger-Mutant | -9/Materials Mutant | -9/Mines Scavenger-Mutant | -8/Materials Scavenger-Mutant | -8/Garrison Scavenger-Mutant | -8/Materials Hacker-Sprinter | -7/Factory Hacker-Sprinter | -7/Waste Hacker-Sprinter | -7/Factory Hacker-Sprinter | -7/Garrison Hacker-Sprinter | -7/Factory Hacker-Sprinter | -7/Lower Caves Hacker-Sprinter | -7/Lower Caves Hacker-Sprinter | -7/Zion Hacker-Sprinter | -6/Proximity Caves Hacker-Sprinter | -6/Factory Hacker-Sprinter | -6/Waste Hacker-Scout | -6/Factory Hacker-Scout | -6/Extension Hacker-Sprinter | -6/Cetus Hacker-Assassin | -6/Archives Hacker-Scout | -6/Hub_04(d) Hacker-Ninja | -5/Factory Hacker-Ninja | -5/Waste Hacker-Ninja | -5/Factory Scavenger-Mutant | -5/Garrison Hacker-Ninja | -5/Factory Hacker-Ninja | -5/Upper Caves Hacker-Assassin | -5/Upper Caves Hacker-Ninja | -4/Factory Ninja | -4/Waste Hacker-Ninja | -4/Factory Hacker-Mutant | -4/Garrison Hacker-Ninja | -3/Research Hacker-Ninja | -3/Quarantine Hacker-Ninja | -2/Research Hacker-Ninja | -2/Testing Hacker-Ninja | -2/Section 7 Hacker-Scout | -1/Access Hacker-Scout | -1/Command Resources | -11 -10 -10 -9 -9 -8 -8 -8 -7 -7 -7 -7 -7 -7 -7 -7 -6 -6 -6 -6 -6 -6 -6 -6 -5 -5 -5 -5 -5 -5 -5 -4 -4 -4 -4 -3 -3 -2 -2 -2 -1 -1 ----------- Run | Scr Mat Min Mat Min Mat Gar Mat Fac Was Fac Gar Fac Low Low Zio Pro Fac Was Fac Ext Cet Arc Hub Fac Was Fac Gar Fac Upp Upp Fac Was Fac Gar Res Qua Res Tes Sec Acc Com Matter Collected 8315 | 200 191 197 768 85 509 138 536 213 . 270 5 458 54 40 . 25 175 . 128 531 67 170 100 380 . 227 31 433 98 92 246 . 436 20 337 360 142 177 221 185 70 Remotely . | . . . . . . . . . . . . . . . . . . . . . . . . . . . . . . . . . . . . . . . . . . Salvage Created 16166 | . 789 147 1724 237 1406 453 1089 308 . 695 45 730 31 . . . 277 . 242 289 56 63 70 497 111 706 28 1210 57 65 632 . 558 75 563 1126 683 105 252 767 80 Parts 887 | . 68 5 129 20 75 16 52 15 . 44 8 31 3 . . . 12 . 6 35 3 11 4 19 4 38 7 51 . 1 17 . 35 4 23 42 30 14 7 48 10 Haulers Intercepted 36 | . 2 . 3 . 5 . 3 2 . 3 . 1 . . . . 1 . 2 . . . . 1 . 1 . 5 . . . . 2 . . 1 3 . 1 . . Recyclers Shooed 12 | . . . 2 . . . 1 . . 1 . 1 . . . . . . . 1 . . . . . . . . . . 2 . . . 2 2 . . . . . Parts Field Recycled . | . . . . . . . . . . . . . . . . . . . . . . . . . . . . . . . . . . . . . . . . . . Retrieved Matter . | . . . . . . . . . . . . . . . . . . . . . . . . . . . . . . . . . . . . . . . . . . Parts Self-Destructed 30 | . . . . . . . . . . . . . 6 13 . 4 . . . . . . . . . . . . . 7 . . . . . . . . . . . Prevented . | . . . . . . . . . . . . . . . . . . . . . . . . . . . . . . . . . . . . . . . . . . Kills | -11 -10 -10 -9 -9 -8 -8 -8 -7 -7 -7 -7 -7 -7 -7 -7 -6 -6 -6 -6 -6 -6 -6 -6 -5 -5 -5 -5 -5 -5 -5 -4 -4 -4 -4 -3 -3 -2 -2 -2 -1 -1 ------- Run | Scr Mat Min Mat Min Mat Gar Mat Fac Was Fac Gar Fac Low Low Zio Pro Fac Was Fac Ext Cet Arc Hub Fac Was Fac Gar Fac Upp Upp Fac Was Fac Gar Res Qua Res Tes Sec Acc Com Combat Hostiles Destroyed 173 | . 13 10 31 8 25 8 16 . . 8 7 3 . . . . 1 . . 7 . . . . . . 3 . . . . . 8 1 4 10 . 5 . 5 . Melee 13 | . . . . . . . . . . . . . . . . . 1 . . 1 . . . . . . . . . . . . . 1 . 5 . 1 . 4 . Guns 47 | . 13 6 22 2 . . 4 . . . . . . . . . . . . . . . . . . . . . . . . . . . . . . . . . . Cannons 51 | . . 4 6 3 22 4 11 . . . . . . . . . . . . . . . . . . . . . . . . . . . . . . . . 1 . AOE 57 | . . . 3 3 2 1 . . . 8 7 3 . . . . . . . 6 . . . . . . 3 . . . . . 8 . 4 5 . 4 . . . Classes Destroyed 22 | . 8 2 2 1 2 . . . . . . 1 1 . . . 1 . . 1 . . . . . 1 1 . . 1 . . . . . . . . . . . Worker 16 | . 2 1 1 3 3 . 1 . . . . 1 . . . . . . . 3 . . . . . . . . . . . . . . . . . 1 . . . Builder 23 | . 1 . 2 . . . . 1 . . . . . . . . . . . 8 . . . . . . . 4 . . . . . . 2 . 2 . . 3 . Tunneler 5 | . . . . 1 . . . . . . . . . . . . . . . 2 . . . . . . . . . . . . 1 . . . 1 . . . . Hauler 36 | . 2 . 3 . 5 . 3 2 . 3 . 1 . . . . 1 . 2 . . . . 1 . 1 . 5 . . . . 2 . . 1 3 . 1 . . Recycler 48 | . 1 . 5 . 2 . . 2 . 3 . 7 . . . . 1 . . . . . . 2 . 4 . 3 . . 4 . 1 . 3 4 2 . 1 3 . Minesweeper 1 | . . . . . . . . . . . . . 1 . . . . . . . . . . . . . . . . . . . . . . . . . . . . Mechanic 2 | . . . . . . . . . . . . . . . . . . . . . . . . . . 1 . . . . 1 . . . . . . . . . . Operator 10 | . 2 . 1 . . . 1 . . . . . . . . . 2 . . . . 2 . . . . . 1 . . . . . . . 1 . . . . . Drone 1 | . . . . . . . . . . . . . . . . . 1 . . . . . . . . . . . . . . . . . . . . . . . . Watcher 52 | . 3 . 4 . 2 . 2 . . 5 . 2 . . . . . . 1 1 . . 2 5 . 3 . 5 . . 2 . 3 . 2 2 3 1 . 2 2 Swarmer 69 | . 3 . 12 7 6 . . . . 8 4 2 . . . . . . . 3 . . . . . . . . . . . . 8 . 4 5 . 5 . 2 . Cutter 3 | . . . . . . . . . . . . . . . . . . . . . . . . . . . 3 . . . . . . . . . . . . . . Grunt 55 | . 10 2 8 1 10 5 11 . . . 3 . . . . . . . . 3 . . . . . . . . . . . . . . . 2 . . . . . Brawler 2 | . . . . . 1 1 . . . . . . . . . . . . . . . . . . . . . . . . . . . . . . . . . . . Duelist 2 | . . . 1 . . . . . . . . . . . . . . . . . . . . . . . . . . . . . . . . . . . . 1 . Sentry 24 | . . . 10 . 7 2 4 . . . . . . . . . . . . . . . . . . . . . . . . . . 1 . . . . . . . Demolisher 2 | . . 2 . . . . . . . . . . . . . . . . . . . . . . . . . . . . . . . . . . . . . . . Hunter 2 | . . . . . 1 . 1 . . . . . . . . . . . . . . . . . . . . . . . . . . . . . . . . . . Programmer 6 | . . . . . . . . . . . . 1 . . . . . . . . . . . . . . . . . . . . . . . 3 . . . 2 . Behemoth 1 | . . . . . . . . . . . . . . . . . . . . 1 . . . . . . . . . . . . . . . . . . . . . Decomposer 1 | . . . . . . . . . . . . . . . . . . . . . . . . . . . . . . 1 . . . . . . . . . . . Samaritan 1 | . . . . . . . . . . . . . . . . . . . . . . . . . . . . . . 1 . . . . . . . . . . . Assembled 6 | . . 6 . . . . . . . . . . . . . . . . . . . . . . . . . . . . . . . . . . . . . . . Wasp 3 | . . . . . . . . . . . . . . . . . . . . . . . . . 3 . . . . . . . . . . . . . . . . Thug 1 | . . . . 1 . . . . . . . . . . . . . . . . . . . . . . . . . . . . . . . . . . . . . Best Kill Streak 14 | . 5 4 5 7 4 2 5 2 . 9 4 3 1 . . . 1 . 1 14 . 1 1 2 . 3 3 3 . . 1 . 5 1 4 5 3 4 1 3 1 Combat Bots Only 8 | . 4 4 4 5 3 2 3 . . 8 4 2 . . . . 1 . . 4 . . . . . . 3 . . . . . 4 1 4 5 . 4 . 2 . Max Kills in Single Turn 6 | . 2 1 3 5 2 1 2 1 . 3 3 2 1 . . . 1 . 1 6 1 1 1 1 1 1 2 1 . 1 1 . 5 1 2 3 1 2 1 1 1 Gunslinging 1 | . 1 . . . . . . . . . . . . . . . . . . . . . . . . . . . . . . . . . . . . . . . . Exploded 4 | . . . 3 3 2 1 . . . 3 3 2 . . . . . . . 3 . . . . . . 2 . . . . . 4 . 2 2 . 2 . . . Melee 1 | . . . . . . . . . . . . . . . . . 1 . . 1 . . . . . . . . . . . . . 1 . 1 . 1 . 1 . Uniques/NPCs Destroyed 1 | . . . . . . . . . . . . . . . . . . . . . 1 . . . . . . . . . . . . . . . . . . . . A7 (-6/Cetus) Combat | -11 -10 -10 -9 -9 -8 -8 -8 -7 -7 -7 -7 -7 -7 -7 -7 -6 -6 -6 -6 -6 -6 -6 -6 -5 -5 -5 -5 -5 -5 -5 -4 -4 -4 -4 -3 -3 -2 -2 -2 -1 -1 -------- Run | Scr Mat Min Mat Min Mat Gar Mat Fac Was Fac Gar Fac Low Low Zio Pro Fac Was Fac Ext Cet Arc Hub Fac Was Fac Gar Fac Upp Upp Fac Was Fac Gar Res Qua Res Tes Sec Acc Com Damage Taken 12048 | . 157 1072 1199 188 1268 974 924 15 . 140 268 418 15 . . 115 119 . 103 113 34 . 39 306 . 322 556 30 . . 226 . 271 89 185 790 134 362 377 322 917 Core 1433 | . 29 160 72 14 149 89 71 . . 80 40 60 . . . 20 40 . 6 20 . . 16 22 . 67 85 18 . . 89 . 17 . 54 62 . 61 . 49 43 Absorbed by Shields 63 | . . . . . . . . . . . . . . . . . . . . 48 . . . . . . 15 . . . . . . . . . . . . . . Redirected to Shielding 700 | . . . . . . . . . . . 25 . . . . 12 . . 3 16 . . . 42 . 35 32 . . . 61 . 71 42 50 121 19 74 . 28 69 Regen/Repaired (Parts) 4069 | . . . 107 . 119 . 159 . . . . 370 . . . . 193 . . . . . 3 399 3 263 . 86 . 251 46 . 150 12 4 717 84 148 288 185 482 Core Remaining (%) 76 | 100 . 24 . 78 . . 43 . . . . . . . . 71 . . . . . . 90 . . . . . . 80 . . . 90 . 91 . . 77 . 94 Volleys Fired 519 | . 39 35 98 9 86 35 68 3 . 6 10 3 . . . . 1 . . 28 . . . 4 . . 4 3 1 1 14 . 4 . 6 14 11 6 15 6 9 Largest 2 | . 2 2 2 2 2 2 2 1 . 1 1 1 . . . . 1 . . 1 . . . 1 . . 1 1 1 1 1 . 1 . 1 1 1 1 1 1 1 Hottest 200 | . 85 100 83 83 130 130 130 30 . 36 39 39 . . . . 5 . . 43 . . . 5 . . 43 85 85 85 85 . 110 . 110 110 110 110 110 200 110 Shots Fired 870 | . 72 69 196 18 171 57 137 3 1 6 10 3 . . . . 1 . . 28 . . . 4 . . 4 3 1 1 14 . 4 . 6 14 11 6 15 6 9 Gun 341 | . 72 37 155 8 . . 65 . . . . . . . . . . . . . . . . . . . . . . . 4 . . . . . . . . . . Cannon 439 | . . 32 40 9 170 44 72 . . . . . . . . . . . . . . . . . . . . 3 1 1 8 . 1 . 3 10 11 4 15 6 9 Launcher 67 | . . . 1 1 1 13 . 1 1 6 10 2 . . . . . . . 15 . . . . . . 4 . . . . . 3 . 3 4 . 2 . . . Special 23 | . . . . . . . . 2 . . . 1 . . . . 1 . . 13 . . . 4 . . . . . . 2 . . . . . . . . . . Kinetic 313 | . 39 35 117 8 45 . 65 . . . . . . . . . . . . . . . . . . . . . . . 4 . . . . . . . . . . Thermal 462 | . 28 34 78 9 125 44 72 . . . . . . . . . . . . . . . . . . . . 3 1 1 8 . 1 . 3 10 11 4 15 6 9 Explosive 54 | . . . 1 1 1 . . 1 1 6 10 2 . . . . . . . 15 . . . . . . 4 . . . . . 3 . 3 4 . 2 . . . Electromagnetic 18 | . 5 . . . . 13 . . . . . . . . . . . . . . . . . . . . . . . . . . . . . . . . . . . Robot Hit Streak 20 | . 8 6 9 6 18 8 16 1 . . . 2 . . . . 3 . . 11 . . . 15 . . . 17 . . 19 . . . 20 . 4 5 . 6 . Robot Miss Streak 5 | . 4 3 2 1 5 3 2 1 . . . . . . . . . . . 1 . . . . . . . . . . . . . . . . 1 . . . . Penetration Max . | . . . . . . . . . . . . . . . . . . . . . . . . . . . . . . . . . . . . . . . . . . Secondary Targets 1 | . 1 . . . . . . . . . . . . . . . . . . . . . . . . . . . . . . . . . . . . . . . . Max Gunslinging Chain 1 | . 1 . . . . . . . . . . . . . . . . . . . . . . . . . . . . . . . . . . . . . . . . Shots Hit Robots 741 | . 44 39 135 11 110 29 94 10 . 15 . 15 3 . . . 11 . 9 24 1 4 1 18 3 13 . 31 1 3 15 . 13 2 15 29 12 5 4 18 4 Core Hits 448 | . 35 17 62 15 45 11 33 5 . 22 17 9 1 . . . 4 . 4 37 1 2 1 7 3 7 7 17 . 1 3 . 18 2 12 18 7 11 5 7 2 Critical Kills 3 | . 1 . . . 1 . 1 . . . . . . . . . . . . . . . . . . . . . . . . . . . . . . . . . . Critical Parts Destroyed 1 | . . . . . . . 1 . . . . . . . . . . . . . . . . . . . . . . . . . . . . . . . . . . Critical Strikes 29 | . 2 . 3 . 2 . 2 1 . 1 . 2 1 . . . 2 . . 1 . . . 2 . . . 1 . 1 1 . 1 . 1 3 . 1 . 1 . Burn 3 | . . . 3 . . . . . . . . . . . . . . . . . . . . . . . . . . . . . . . . . . . . . . Meltdown 2 | . . . . . 1 . 1 . . . . . . . . . . . . . . . . . . . . . . . . . . . . . . . . . . Destroy 2 | . 1 . . . . . 1 . . . . . . . . . . . . . . . . . . . . . . . . . . . . . . . . . . Blast 1 | . . . . . 1 . . . . . . . . . . . . . . . . . . . . . . . . . . . . . . . . . . . . Corrupt 1 | . 1 . . . . . . . . . . . . . . . . . . . . . . . . . . . . . . . . . . . . . . . . Sever 3 | . . . . . . . . . . . . . . . . . . . . . . . . . . . . . . . . . . . . 1 . 1 . 1 . Impale 17 | . . . . . . . . 1 . 1 . 2 1 . . . 2 . . 1 . . . 2 . . . 1 . 1 1 . 1 . 1 2 . . . . . Melee Attacks 978 | . . . . . . . . 27 . 53 . 45 11 37 . 17 46 . 34 12 2 5 19 73 4 60 . 64 68 12 42 . 47 2 56 65 52 11 32 58 24 Impact . | . . . . . . . . . . . . . . . . . . . . . . . . . . . . . . . . . . . . . . . . . . Slashing 217 | . . . . . . . . . . . . . . . . . . . . . . . . . . . . . . . . . . . . 40 52 11 32 58 24 Piercing 761 | . . . . . . . . 27 . 53 . 45 11 37 . 17 46 . 34 12 2 5 19 73 4 60 . 64 68 12 42 . 47 2 56 25 . . . . . Sneak Attacks 113 | . . . . . . . . 7 . 7 . 10 1 . . . 4 . 2 2 1 4 . 5 3 7 . 12 . 3 8 . 3 . 8 7 7 1 2 9 . Combat Hostiles 3 | . . . . . . . . . . . . . . . . . 1 . . 1 . . . . . . . . . . . . . . . . . . . 1 . Follow-up Attacks . | . . . . . . . . . . . . . . . . . . . . . . . . . . . . . . . . . . . . . . . . . . Damage Inflicted 36287 | . 722 666 2381 521 3023 1050 2326 487 . 1256 1065 957 105 . . . 492 . 411 2957 42 273 49 785 208 780 361 1832 112 280 944 . 1443 123 1669 3078 1601 1017 563 2312 396 Guns 3686 | . 670 317 1838 106 . . 755 . . . . . . . . . . . . . . . . . . . . . . . . . . . . . . . . . . Cannons 6354 | . . 336 335 144 2851 723 1544 . . . . . . . . . . . . . . . . . . . . 62 . . . . . . . . 167 . 30 162 . Explosions 8079 | . . . 151 246 163 319 . . . 454 1065 187 . . . . . . . 2641 . . . . . . 361 . . . . . 547 . 524 705 25 635 56 . . Melee 17977 | . . . . . . . . 487 . 802 . 770 105 . . . 492 . 411 316 42 273 49 785 208 780 . 1770 112 280 944 . 896 123 1145 2373 1409 382 477 2150 396 Ramming 191 | . 52 13 57 25 9 8 27 . . . . . . . . . . . . . . . . . . . . . . . . . . . . . . . . . . Kinetic 3668 | . 354 358 1383 106 712 . 755 . . . . . . . . . . . . . . . . . . . . . . . . . . . . . . . . . . Thermal 6415 | . 278 295 790 144 2139 723 1544 . . . . . . . . . . . . . . . . . . . . 62 . . . . . . . . 192 . 86 162 . Explosive 7679 | . . . 151 246 163 . . . . 454 1065 187 . . . . . . . 2641 . . . . . . 361 . . . . . 547 . 524 705 . 635 . . . Electromagnetic 357 | . 38 . . . . 319 . . . . . . . . . . . . . . . . . . . . . . . . . . . . . . . . . . . Impact . | . . . . . . . . . . . . . . . . . . . . . . . . . . . . . . . . . . . . . . . . . . Slashing 6704 | . . . . . . . . . . . . . . . . . . . . . . . . . . . . . . . . . . . . 1890 1409 382 477 2150 396 Piercing 11273 | . . . . . . . . 487 . 802 . 770 105 . . . 492 . 411 316 42 273 49 785 208 780 . 1770 112 280 944 . 896 123 1145 483 . . . . . Highest Corruption 12 | . . 5 5 5 2 12 12 . 10 10 3 3 2 . . . . 9 9 9 9 9 . 1 5 7 7 7 7 7 1 11 11 4 1 4 . . . 1 4 Average Corruption 5 | . . 5 3 5 2 6 12 . 10 4 3 2 1 . . . . 9 9 9 9 6 . 1 5 5 7 7 7 7 1 3 5 4 1 2 . . . 1 2 Corruption Purged 31 | . . . . . . . . . . 7 . 3 2 . . . . . . . . 9 . 1 . . . . . . . . 7 . . 1 . . . 1 . Corruption Blocked 5 | . . . . . . . . . . . . . . . . . . . . . . . . . . . . . . . . . . . . . . . . . 5 Effects 434 | . . 3 30 21 16 10 48 . 1 25 2 12 7 . . . . 2 19 26 7 14 . 3 2 40 8 47 20 26 2 . 22 5 . 10 . . . 3 3 Message Errors 124 | . . . 11 7 4 3 13 . . 7 1 4 1 . . . . . 7 7 3 6 . 2 . 10 1 10 7 8 . . 6 1 . 2 . . . 2 1 Matter Fused 103 | . . 2 9 3 3 2 9 . . 4 . 1 2 . . . . 1 4 6 2 2 . . 1 6 6 18 4 8 . . 6 1 . 3 . . . . . Heat Flow Errors 58 | . . . 1 5 2 1 6 . . 5 . 3 2 . . . . 1 4 2 1 1 . 1 1 6 . 2 2 3 1 . 3 2 . 2 . . . . 1 Energy Discharges 62 | . . . 6 2 2 . 9 . . 2 . 1 1 . . . . . 1 4 1 1 . . . 12 1 8 5 . 1 . 4 . . 1 . . . . . Parts Rejected 2 | . . . . . . . 1 . . . . . . . . . . . . . . . . . . . . 1 . . . . . . . . . . . . . Data Loss (minor) 52 | . . . 2 3 3 3 3 . . 6 . 2 1 . . . . . 2 4 . 4 . . . 4 . 6 1 2 . . 3 1 . 2 . . . . . Data Loss (major) 15 | . . . . . . . 2 . . 1 . 1 . . . . . . . 2 . . . . . 2 . 2 1 3 . . . . . . . . . . 1 Misfires 6 | . . . 1 1 1 . 2 . 1 . . . . . . . . . . . . . . . . . . . . . . . . . . . . . . . . Alerts 9 | . . . . . 1 1 1 . . . 1 . . . . . . . 1 1 . . . . . . . . . 2 . . . . . . . . . 1 . Misdirections 1 | . . . . . . . 1 . . . . . . . . . . . . . . . . . . . . . . . . . . . . . . . . . . Weapon Failures 2 | . . 1 . . . . 1 . . . . . . . . . . . . . . . . . . . . . . . . . . . . . . . . . . Overload Shots . | . . . . . . . . . . . . . . . . . . . . . . . . . . . . . . . . . . . . . . . . . . Overflow Damage 4799 | . . 16 . . 70 . 57 21 . 101 3 299 19 . . . 61 . 14 322 . 37 . 135 . 121 18 259 101 210 378 . 51 . 357 467 557 206 115 779 25 Projectiles 156 | . . 16 . . 70 . 57 . . . . . . . . . . . . . . . . . . . . . . . . . . . . . 13 . . . . Explosions 431 | . . . . . . . . . . . 3 . . . . . . . . 243 . . . . . . 18 . . . . . . . 57 43 . 67 . . . Melee 4212 | . . . . . . . . 21 . 101 . 299 19 . . . 61 . 14 79 . 37 . 135 . 121 . 259 101 210 378 . 51 . 300 424 544 139 115 779 25 Knockbacks 13 | . . 6 3 . 4 . . . . . . . . . . . . . . . . . . . . . . . . . . . . . . . . . . . . Impact . | . . . . . . . . . . . . . . . . . . . . . . . . . . . . . . . . . . . . . . . . . . Kinetic 13 | . . 6 3 . 4 . . . . . . . . . . . . . . . . . . . . . . . . . . . . . . . . . . . . Secondary . | . . . . . . . . . . . . . . . . . . . . . . . . . . . . . . . . . . . . . . . . . . Self-Inflicted Damage 164 | . . . . . . 36 . . . . 28 24 . . . . . . . . . . . . . . 39 . . . 16 . . . . . 21 . . . . Shots 9 | . . . . . . 4 . . . . 1 1 . . . . . . . . . . . . . . 1 . . . 1 . . . . . 1 . . . . Rammed 35 | . 5 1 13 5 4 2 5 . . . . . . . . . . . . . . . . . . . . . . . . . . . . . . . . . . Targets Rammed 56 | . 23 1 16 5 4 2 5 . . . . . . . . . . . . . . . . . . . . . . . . . . . . . . . . . . Kicked 16 | . 16 . . . . . . . . . . . . . . . . . . . . . . . . . . . . . . . . . . . . . . . . Crushed 5 | . 2 . 3 . . . . . . . . . . . . . . . . . . . . . . . . . . . . . . . . . . . . . . Highest Temperature 312 | . 18 249 146 263 224 256 190 . 12 242 37 257 215 . . 13 3 . 203 226 195 131 . 228 104 257 9 252 121 252 108 4 262 312 64 254 236 204 56 110 205 Average Temperature 50 | . 9 87 15 107 47 104 49 . 8 77 14 98 101 . . 5 3 . 79 101 116 66 . 95 69 90 3 104 54 84 10 3 29 93 15 107 46 48 20 60 82 Received Heat Transfer 3067 | . 60 154 372 6 549 531 531 6 . . 123 45 9 . . 54 9 . 24 17 9 . . 72 . 54 81 . . . 9 . 21 . 9 214 9 18 18 9 54 Effects 3 | . . . . . . . . . . . . . . . . . . . . . . . . . . . . . . . . . . . . 3 . . . . . Interference 3 | . . . . . . . . . . . . . . . . . . . . . . . . . . . . . . . . . . . . 3 . . . . . Siege Activations . | . . . . . . . . . . . . . . . . . . . . . . . . . . . . . . . . . . . . . . . . . . Robots Corrupted 2 | . . . . . . 2 . . . . . . . . . . . . . . . . . . . . . . . . . . . . . . . . . . . Combat Hostiles 2 | . . . . . . 2 . . . . . . . . . . . . . . . . . . . . . . . . . . . . . . . . . . . Parts Fried 1 | . . . . . . . . . . . . . . . . . . . . . . . 1 . . . . . . . . . . . . . . . . . . Impact Corruptions . | . . . . . . . . . . . . . . . . . . . . . . . . . . . . . . . . . . . . . . . . . . Robots Melted 3 | . . . . . 1 1 1 . . . . . . . . . . . . . . . . . . . . . . . . . . . . . . . . . . Combat Hostiles 3 | . . . . . 1 1 1 . . . . . . . . . . . . . . . . . . . . . . . . . . . . . . . . . . Parts Melted 13 | . 1 . 5 . 4 1 2 . . . . . . . . . . . . . . . . . . . . . . . . . . . . . . . . . . Heat Transferred 10227 | . 666 740 2109 296 3108 962 2072 . . . . . . . . . . . . . . . . . . . . 74 . . . . . . . . 50 . 100 50 . Parts Sabotaged . | . . . . . . . . . . . . . . . . . . . . . . . . . . . . . . . . . . . . . . . . . . Parts Stolen . | . . . . . . . . . . . . . . . . . . . . . . . . . . . . . . . . . . . . . . . . . . Parts Stripped . | . . . . . . . . . . . . . . . . . . . . . . . . . . . . . . . . . . . . . . . . . . Power Chain Reactions 2 | . . . . . . . . . . . . . . . . . . . . . . . . . . . . . . . . . . . . . 1 . 1 . . Missiles Intercepted . | . . . . . . . . . . . . . . . . . . . . . . . . . . . . . . . . . . . . . . . . . . Alert | -11 -10 -10 -9 -9 -8 -8 -8 -7 -7 -7 -7 -7 -7 -7 -7 -6 -6 -6 -6 -6 -6 -6 -6 -5 -5 -5 -5 -5 -5 -5 -4 -4 -4 -4 -3 -3 -2 -2 -2 -1 -1 ------- Run | Scr Mat Min Mat Min Mat Gar Mat Fac Was Fac Gar Fac Low Low Zio Pro Fac Was Fac Ext Cet Arc Hub Fac Was Fac Gar Fac Upp Upp Fac Was Fac Gar Res Qua Res Tes Sec Acc Com Peak Influence 961 | . 334 117 627 509 319 506 497 346 58 473 238 317 . . . . 323 99 309 961 651 476 460 325 184 267 179 323 . . 390 166 441 160 482 318 289 425 362 401 528 Initial 537 | . . 32 1 244 61 111 246 175 38 40 2 114 . . . . 12 84 55 151 537 260 . 64 90 128 35 88 . . . 136 116 101 90 54 119 85 87 130 6 Average 196 | . 180 49 203 311 157 375 355 163 44 161 110 180 . . . . 105 91 193 470 625 214 193 178 106 124 45 108 . . 191 154 291 131 150 158 124 225 186 205 217 Maximum Alert Level 3 | . 1 . 2 2 1 2 2 1 . 2 1 1 . . . . 1 . 1 3 2 2 2 1 . 1 . 1 . . 1 . 2 . 2 1 1 2 1 2 2 Low Security (%) 59 | 100 69 100 66 16 72 20 2 55 100 66 88 64 . . . . 89 100 52 14 . 52 45 61 100 79 100 82 . . 47 100 23 100 75 69 78 57 49 41 66 Level 1 32 | . 30 . 16 75 27 11 67 44 . 23 11 35 . . . . 10 . 47 33 . 26 47 38 . 20 . 17 . . 52 . 53 . 23 30 21 39 50 55 15 Level 2 8 | . . . 16 8 . 68 30 . . 10 . . . . . . . . . 27 100 21 7 . . . . . . . . . 23 . 1 . . 2 . 2 18 Level 3 . | . . . . . . . . . . . . . . . . . . . . 24 . . . . . . . . . . . . . . . . . . . . . Level 4 . | . . . . . . . . . . . . . . . . . . . . . . . . . . . . . . . . . . . . . . . . . . Level 5 . | . . . . . . . . . . . . . . . . . . . . . . . . . . . . . . . . . . . . . . . . . . High Security . | . . . . . . . . . . . . . . . . . . . . . . . . . . . . . . . . . . . . . . . . . . Max Security . | . . . . . . . . . . . . . . . . . . . . . . . . . . . . . . . . . . . . . . . . . . Squads Dispatched 102 | . 4 . 4 . 5 . . 2 . 7 . 6 . . . . 7 . 1 6 . . 11 3 . 3 . 5 . . 6 . 4 . 3 3 3 1 7 6 5 Investigation 22 | . 1 . 3 . 1 . . 1 . 3 . 1 . . . . . . . . . . 9 1 . . . . . . . . . . . . . . 1 1 . Extermination 27 | . . . . . . . . 1 . 2 . 4 . . . . 2 . . . . . . . . 1 . . . . 3 . 2 . 1 3 2 1 2 2 1 Reinforcement 51 | . 3 . 1 . 4 . . . . 2 . . . . . . 5 . 1 5 . . 2 2 . 2 . 5 . . 3 . 2 . 2 . 1 . 4 3 4 Assault 2 | . . . . . . . . . . . . 1 . . . . . . . 1 . . . . . . . . . . . . . . . . . . . . . Garrison . | . . . . . . . . . . . . . . . . . . . . . . . . . . . . . . . . . . . . . . . . . . Intercept . | . . . . . . . . . . . . . . . . . . . . . . . . . . . . . . . . . . . . . . . . . . Searches Triggered 2 | . . . . . . . . . . . . . . . . . . . . . . . . . . . . . . . . . 1 . . . . . . 1 . Construction Impeded 4 | . . . . . . . . . . . . . . . . . . . . 2 . . 1 . . . . . . . . . . . 1 . . . . . . Haulers Reinforced 6 | . . . . . . . . . . 1 . . . . . . 1 . 1 . . . . . . . . 2 . . . . 1 . . . . . . . . Active Scanning Responses . | . . . . . . . . . . . . . . . . . . . . . . . . . . . . . . . . . . . . . . . . . . Cargo Convoy Interrupts 1 | . . . . . . . . . . . . . . . . . . . . . . . . . . 1 . . . . . . . . . . . . . . . Stealth | -11 -10 -10 -9 -9 -8 -8 -8 -7 -7 -7 -7 -7 -7 -7 -7 -6 -6 -6 -6 -6 -6 -6 -6 -5 -5 -5 -5 -5 -5 -5 -4 -4 -4 -4 -3 -3 -2 -2 -2 -1 -1 --------- Run | Scr Mat Min Mat Min Mat Gar Mat Fac Was Fac Gar Fac Low Low Zio Pro Fac Was Fac Ext Cet Arc Hub Fac Was Fac Gar Fac Upp Upp Fac Was Fac Gar Res Qua Res Tes Sec Acc Com Distress Signals 47 | . 1 1 3 . 2 . 2 2 . 2 . 1 . . . . 3 . 3 3 1 . 2 3 . . . 2 . . 3 . 2 . 2 2 2 1 1 3 . Communications Jammed 103 | . . . . . . . . . . . . . . . . . . . . . . . . 31 . 13 . 3 . . . . 22 . 4 2 . . 11 7 10 Distress Signals 79 | . . . . . . . . . . . . . . . . . . . . . . . . 11 . 9 . 3 . . . . 22 . 4 2 . . 11 7 10 Times Spotted 718 | . 24 15 46 9 39 16 34 12 3 34 17 21 2 9 . 4 31 6 19 29 6 3 13 42 4 28 15 27 . . 28 5 26 8 21 16 16 15 19 27 29 Peak Tracking Total 13 | . 3 3 6 4 7 5 4 5 3 7 11 6 1 4 . 3 9 6 6 4 5 . 6 7 4 9 13 4 . . 8 5 5 9 4 3 3 6 7 8 13 Tactical Retreats 119 | . 1 . 1 . 3 4 4 3 . 7 . 7 1 5 . 1 9 . 5 2 . . 2 14 . 8 . 2 . . 7 . 4 1 5 . 6 2 3 7 5 Traps | -11 -10 -10 -9 -9 -8 -8 -8 -7 -7 -7 -7 -7 -7 -7 -7 -6 -6 -6 -6 -6 -6 -6 -6 -5 -5 -5 -5 -5 -5 -5 -4 -4 -4 -4 -3 -3 -2 -2 -2 -1 -1 ------- Run | Scr Mat Min Mat Min Mat Gar Mat Fac Was Fac Gar Fac Low Low Zio Pro Fac Was Fac Ext Cet Arc Hub Fac Was Fac Gar Fac Upp Upp Fac Was Fac Gar Res Qua Res Tes Sec Acc Com Traps Triggered 51 | . 2 . 5 . 2 . . 1 . 2 . 3 . . . . 3 . . 6 . . . 5 . 3 2 . . . 2 . 2 1 1 3 1 1 2 3 1 Indirectly . | . . . . . . . . . . . . . . . . . . . . . . . . . . . . . . . . . . . . . . . . . . Trap Hack Attempts . | . . . . . . . . . . . . . . . . . . . . . . . . . . . . . . . . . . . . . . . . . . Triggered . | . . . . . . . . . . . . . . . . . . . . . . . . . . . . . . . . . . . . . . . . . . Disarmed . | . . . . . . . . . . . . . . . . . . . . . . . . . . . . . . . . . . . . . . . . . . Reprogrammed 47 | . . . . . . . . . . . . . . . . . . . . . . . . 10 . . . 12 . . . . 11 . . 3 . . . . 11 Reused 19 | . . . . . . . . . . . . . . . . . . . . . . . . 6 . . . 5 . . . . 5 . . . . . . . 3 Traps Extracted . | . . . . . . . . . . . . . . . . . . . . . . . . . . . . . . . . . . . . . . . . . . Installed . | . . . . . . . . . . . . . . . . . . . . . . . . . . . . . . . . . . . . . . . . . . Triggered 23 | . . . . . . . . . . . . . . 2 . . . . . . . . . 6 . 1 . 5 2 . . . 5 . . . . . . . 2 Machines | -11 -10 -10 -9 -9 -8 -8 -8 -7 -7 -7 -7 -7 -7 -7 -7 -6 -6 -6 -6 -6 -6 -6 -6 -5 -5 -5 -5 -5 -5 -5 -4 -4 -4 -4 -3 -3 -2 -2 -2 -1 -1 ---------- Run | Scr Mat Min Mat Min Mat Gar Mat Fac Was Fac Gar Fac Low Low Zio Pro Fac Was Fac Ext Cet Arc Hub Fac Was Fac Gar Fac Upp Upp Fac Was Fac Gar Res Qua Res Tes Sec Acc Com Machines Disabled 49 | . 2 . 2 . 2 . 2 . . 1 . 2 . 1 . . . . 1 3 1 3 . . . . . . 2 . 6 . 1 . . 6 1 4 6 1 2 Max in Single Turn 6 | . 1 . 1 . 1 . 1 . . 1 . 1 . 1 . . . . 1 . 1 . . . . . . . 1 . 6 . 1 . . 1 . 1 1 1 2 Garrison Access 27 | . . . . . . . . 1 . 1 . 2 . . . . 1 . 3 . . . 2 3 . 1 . 3 . . 1 . . . 2 . 3 . . 4 . Phase Generator 1 | . . . . . . . . . . . . . . . . . . . . . . . . . . . . . . . . . . . . . . . . . 1 Network Hub 4 | . . . . . . . . . . . . . . . . . . . . . . . 4 . . . . . . . . . . . . . . . . . . Energy Cycler 1 | . . . . . . . . . . . . . . . . . . . . 1 . . . . . . . . . . . . . . . . . . . . . Machines Sabotaged 2 | . . . . . . . . . . . . . . . . . . . . . . . 2 . . . . . . . . . . . . . . . . . . Garrisons Compromised 2 | . . . . . . . . . . . . 1 . . . . . . . . . . . . . 1 . . . . . . . . . . . . . . . Overloaded Fab Kills . | . . . . . . . . . . . . . . . . . . . . . . . . . . . . . . . . . . . . . . . . . . Hacking | -11 -10 -10 -9 -9 -8 -8 -8 -7 -7 -7 -7 -7 -7 -7 -7 -6 -6 -6 -6 -6 -6 -6 -6 -5 -5 -5 -5 -5 -5 -5 -4 -4 -4 -4 -3 -3 -2 -2 -2 -1 -1 --------- Run | Scr Mat Min Mat Min Mat Gar Mat Fac Was Fac Gar Fac Low Low Zio Pro Fac Was Fac Ext Cet Arc Hub Fac Was Fac Gar Fac Upp Upp Fac Was Fac Gar Res Qua Res Tes Sec Acc Com Machines Accessed 347 | . 4 . 15 . 8 . 8 8 . 19 . 23 . 2 . . 16 . 13 7 1 . 11 25 . 23 . 30 2 . 11 . 16 . 14 14 27 6 15 18 11 Terminals 248 | . 3 . 11 . 6 . 7 6 . 15 . 16 . . . . 10 . 9 7 1 . 9 18 . 15 . 19 . . 6 . 10 . 10 11 17 5 13 13 11 Fabricators 22 | . . . . . . . . 1 . 2 . 2 . . . . 2 . 1 . . . . 1 . 2 . 2 . . 2 . 2 . 1 . 3 1 . . . Repair Stations 26 | . . . 2 . 1 . 1 . . . . 3 . . . . 3 . . . . . . 2 . 2 . 3 . . 2 . 3 . . 2 1 . . 1 . Recycling Units 7 | . 1 . 2 . . . . . . . . 1 . . . . . . . . . . . 1 . 1 . 1 . . . . . . . . . . . . . Scanalyzers 8 | . . . . . . . . . . . . . . . . . . . . . . . . . . . . 2 . . . . . . 1 1 2 . 2 . . Garrison Access 32 | . . . . . 1 . . 1 . 2 . 1 . . . . 1 . 3 . . . 2 3 . 3 . 3 . . 1 . 1 . 2 . 4 . . 4 . Total Hacks 1450 | . 14 . 39 . 26 . 20 28 . 63 . 81 . 10 . . 53 . 39 19 2 . 39 135 . 88 . 152 7 . 50 . 85 . 56 88 107 29 72 81 67 Successful 1029 | . 9 . 32 . 18 . 13 21 . 44 . 55 . 10 . . 38 . 28 8 1 . 29 100 . 74 . 109 7 . 40 . 54 . 38 49 80 24 47 51 50 Failed 421 | . 5 . 7 . 8 . 7 7 . 19 . 26 . . . . 15 . 11 11 1 . 10 35 . 14 . 43 . . 10 . 31 . 18 39 27 5 25 30 17 Catastrophic 16 | . . . . . . . 2 1 . . . 3 . . . . 2 . 2 1 . . . 1 . . . . . . . . . . . 1 . . 1 2 . Database Lockouts . | . . . . . . . . . . . . . . . . . . . . . . . . . . . . . . . . . . . . . . . . . . Manual 789 | . 13 . 25 . 18 . 16 20 . 43 . 51 . . . . 30 . 25 6 1 . 28 58 . 48 . 70 . . 26 . 39 . 27 36 57 18 41 47 46 Terminals 1190 | . 11 . 34 . 23 . 18 23 . 54 . 57 . . . . 38 . 32 19 2 . 37 117 . 68 . 122 . . 37 . 62 . 48 70 86 25 67 73 67 Fabricators 83 | . . . . . . . . 3 . 6 . 7 . . . . 8 . 4 . . . . 3 . 5 . 12 . . 7 . 8 . 5 . 11 4 . . . Repair Stations 91 | . . . 3 . 2 . 2 . . . . 12 . . . . 6 . . . . . . 8 . 9 . 9 . . 5 . 14 . . 15 2 . . 4 . Recycling Units 17 | . 3 . 2 . . . . . . . . 4 . . . . . . . . . . . 3 . 1 . 4 . . . . . . . . . . . . . Scanalyzers 13 | . . . . . . . . . . . . . . . . . . . . . . . . . . . . 2 . . . . . . 1 3 2 . 5 . . Garrison Access 39 | . . . . . 1 . . 2 . 3 . 1 . . . . 1 . 3 . . . 2 4 . 5 . 3 . . 1 . 1 . 2 . 6 . . 4 . Terminal Hacks 384 | . 4 . 13 . 6 . 3 7 . 12 . 13 . 10 . . 9 . 9 5 1 . 8 44 . 26 . 49 7 . 11 . 17 . 16 17 27 8 20 20 22 Record 19 | . . . . . . . . . . . . . . 9 . . . . . . . . . . . . . 3 6 . . . 1 . . . . . . . . Part Schematic 7 | . . . . . . . . . . . . . . . . . . . 1 . . . . . . . . 4 . . . . . . . . 1 . . 1 . Robot Schematic 1 | . . . . . . . . . . . . . . . . . . . . . . . . 1 . . . . . . . . . . . . . . . . . Robot Analysis 14 | . 2 . 2 . . . . . . . . . . . . . . . . . . . . 1 . . . 2 . . . . 1 . 1 . 1 . 1 1 2 Prototype ID Bank 55 | . 1 . 2 . . . . . . 3 . 2 . . . . . . 4 . . . 1 6 . 5 . 11 . . 1 . 1 . 2 3 7 1 1 2 2 Open Door 10 | . . . . . . . . . . . . . . 1 . . . . . 4 1 . . . . . . . 1 . . . . . 1 . . . 1 1 . Open DSF 6 | . . . . . . . . . . . . 2 . . . . . . . . . . . 1 . 2 . 1 . . . . . . . . . . . . . Level Access Points 7 | . . . . . . . . . . . . . . . . . . . . . . . . 1 . 1 . 1 . . 1 . 1 . . . . 1 1 . . Branch Access Points 10 | . . . 1 . . . . . . . . 1 . . . . . . 1 . . . . 1 . 1 . 1 . . 1 . 1 . . . 1 . . 1 . Emergency Access Points 15 | . . . . . . . . . . . . . . . . . . . . . . . . 1 . 2 . 2 . . . . 1 . 1 . 2 . 2 . 4 Machine Index 11 | . . . . . . . . . . 1 . . . . . . . . . . . . 1 . . 1 . 1 . . 1 . 1 . . . 1 1 1 1 1 Terminal Index 13 | . . . 1 . 1 . . 1 . 1 . 1 . . . . . . 1 . . . . 1 . . . . . . 1 . 1 . 1 . . 1 1 . 1 Scanalyzer Index 1 | . . . . . . . . . . . . . . . . . . . . . . . . 1 . . . . . . . . . . . . . . . . . Garrison Index 4 | . . . . . . . . . . . . 1 . . . . . . . . . . . . . . . 1 . . . . . . . 1 . . 1 . . Alert Level 4 | . . . 1 . 2 . . . . . . . . . . . . . . . . . . . . . . 1 . . . . . . . . . . . . . Unreport Threat 40 | . . . . . 2 . 1 1 . 2 . . . . . . 1 . . 1 . . 3 3 . 3 . 4 . . 1 . 2 . 2 1 3 1 2 4 3 Locate Traps 29 | . . . . . 1 . 1 1 . 1 . . . . . . 3 . 2 . . . . 7 . 2 . 1 . . . . 2 . 2 2 1 . 1 2 . Reprogram Traps 14 | . . . . . . . . . . . . . . . . . . . . . . . . 3 . . . 3 . . . . 2 . . 2 . . . . 4 Dispatch Records 1 | . . . . . . . . . . . . . . . . . . . . . . . . . . 1 . . . . . . . . . . . . . . . Maintenance Status 6 | . . . 1 . . . . . . . . . . . . . . . . . . . . 1 . . . . . . 1 . . . 1 1 . . . 1 . Surveillance Status 3 | . . . . . . . . . . . . . . . . . . . . . . . . . . . . . . . . . . . 1 . . . . 1 1 Patrol Status 9 | . . . 1 . . . 1 1 . . . . . . . . . . . . . . . 3 . 1 . 1 . . . . . . . . . . . . 1 Transport Status 1 | . . . . . . . . . . . . . . . . . . . . . . . . 1 . . . . . . . . . . . . . . . . . Reinforcement Status 1 | . . . . . . . . . . . . . . . . . . . . . . . . . . . . . . . . . . . . . 1 . . . . Recall Investigation 4 | . . . . . . . . . . . . . . . . . . . . . . . . 2 . . . 1 . . . . . . . . . . 1 . . Recall Extermination 18 | . . . . . . . . 1 . 1 . 2 . . . . 2 . . . . . . . . 1 . . . . 1 . 2 . 1 2 2 . 2 1 . Recall Reinforcements 6 | . . . . . . . . . . 1 . . . . . . . . . . . . . 1 . . . 3 . . . . . . . . . . 1 . . Recall Assault 1 | . . . . . . . . . . . . 1 . . . . . . . . . . . . . . . . . . . . . . . . . . . . . Hauler Manifests 7 | . . . 1 . . . . 1 . . . . . . . . . . . . . . . 1 . 1 . 2 . . . . . . . 1 . . . . . Registered Components 4 | . . . . . . . . . . . . . . . . . . . . . . . . 1 . . . 1 . . 1 . . . . . . . . . 1 Registered Prototypes 5 | . . . . . . . . . . . . . . . . . . . . . . . . 1 . . . . . . 1 . . . . . 1 . 1 . 1 Zone Layout 57 | . 1 . 3 . . . . 1 . 2 . 3 . . . . 3 . . . . . 3 6 . 5 . 5 . . 1 . 1 . 3 4 6 3 3 4 . Disengage Seal 1 | . . . . . . . . . . . . . . . . . . . . . . . . . . . . . . . . . . . . . . . . . 1 Fabricator Hacks 26 | . . . . . . . . 1 . 2 . 2 . . . . 3 . 1 . . . . 2 . 2 . 3 . . 2 . 2 . 1 . 4 1 . . . Network Status 19 | . . . . . . . . 1 . 2 . 2 . . . . 2 . 1 . . . . . . 2 . 2 . . 1 . 1 . 1 . 3 1 . . . Load Schematic 1 | . . . . . . . . . . . . . . . . . . . . . . . . 1 . . . . . . . . . . . . . . . . . Build 6 | . . . . . . . . . . . . . . . . . 1 . . . . . . 1 . . . 1 . . 1 . 1 . . . 1 . . . . Repair Station Hacks 75 | . . . 2 . 2 . 2 . . . . 10 . . . . 6 . . . . . . 6 . 8 . 6 . . 5 . 12 . . 10 2 . . 4 . Scan Component 37 | . . . 1 . 1 . 1 . . . . 5 . . . . 3 . . . . . . 3 . 4 . 3 . . 2 . 6 . . 5 1 . . 2 . Repair 36 | . . . 1 . 1 . 1 . . . . 5 . . . . 3 . . . . . . 3 . 4 . 3 . . 2 . 5 . . 5 1 . . 2 . Refit 2 | . . . . . . . . . . . . . . . . . . . . . . . . . . . . . . . 1 . 1 . . . . . . . . Recycling Unit Hacks . | . . . . . . . . . . . . . . . . . . . . . . . . . . . . . . . . . . . . . . . . . . Scanalyzer 13 | . . . . . . . . . . . . . . . . . . . . . . . . . . . . 2 . . . . . . 1 3 2 . 5 . . Insert Component 13 | . . . . . . . . . . . . . . . . . . . . . . . . . . . . 2 . . . . . . 1 3 2 . 5 . . Garrison Access Hacks 33 | . . . . . 1 . . 2 . 3 . 1 . . . . 1 . 3 . . . 2 4 . 2 . 3 . . 1 . 1 . 2 . 3 . . 4 . Unlock Access 4 | . . . . . 1 . . . . 1 . . . . . . . . . . . . . . . 1 . . . . . . 1 . . . . . . . . Seal Access 26 | . . . . . . . . 1 . 1 . 1 . . . . 1 . 3 . . . 2 3 . 1 . 3 . . 1 . . . 2 . 3 . . 4 . Coupler Status 3 | . . . . . . . . 1 . 1 . . . . . . . . . . . . . 1 . . . . . . . . . . . . . . . . . Unauthorized Hacks 498 | . 5 . 17 . 9 . 8 11 . 27 . 29 . . . . 19 . 15 3 . . 19 44 . 36 . 46 . . 21 . 22 . 18 19 42 15 22 23 28 Terminals 440 | . 4 . 15 . 9 . 8 9 . 24 . 23 . . . . 15 . 12 3 . . 19 41 . 29 . 39 . . 17 . 19 . 16 19 34 12 22 23 28 Track 76 | . . . 1 . 1 . . 1 . 3 . 5 . . . . 3 . 1 . . . . 8 . 4 . 6 . . 5 . 5 . 3 3 7 3 5 5 7 Assimilate 48 | . . . . . . . 2 1 . 5 . 3 . . . . 1 . 2 . . . 1 3 . 4 . 7 . . 1 . 1 . 2 2 4 2 4 . 3 Botnet 218 | . 3 . 11 . 6 . 5 4 . 14 . 12 . . . . 10 . 7 2 . . 8 17 . 13 . 17 . . 6 . 9 . 9 11 17 5 9 13 10 Detonate 2 | . . . . . . . . . . . . . . . . . . . . . . . 1 1 . . . . . . . . . . . . . . . . . Disrupt 57 | . . . 1 . . . . 1 . 1 . 1 . . . . . . 1 . . . . 10 . 6 . 6 . . 4 . 3 . 1 2 4 1 4 4 7 Operators 31 | . 1 . 2 . 2 . 1 2 . 1 . 2 . . . . 1 . 1 1 . . 1 2 . 2 . 3 . . 1 . 1 . 1 1 2 1 . 1 1 Sabotage 8 | . . . . . . . . . . . . . . . . . . . . . . . 8 . . . . . . . . . . . . . . . . . . Fabricators 43 | . . . . . . . . 2 . 3 . 4 . . . . 4 . 3 . . . . 1 . 3 . 6 . . 4 . 3 . 2 . 5 3 . . . Report 9 | . . . . . . . . . . 1 . 1 . . . . 2 . 1 . . . . . . . . 2 . . 1 . . . . . . 1 . . . Prioritize 5 | . . . . . . . . . . . . . . . . . . . . . . . . 1 . . . 1 . . 1 . 1 . . . 1 . . . . Liberate 17 | . . . . . . . . 1 . 2 . 2 . . . . 1 . 1 . . . . . . 2 . 1 . . 1 . 1 . 1 . 3 1 . . . Haulers 12 | . . . . . . . . 1 . . . 1 . . . . 1 . 1 . . . . . . 1 . 2 . . 1 . 1 . 1 . 1 1 . . . Repair Stations . | . . . . . . . . . . . . . . . . . . . . . . . . . . . . . . . . . . . . . . . . . . Recycling Units 9 | . 1 . 2 . . . . . . . . 2 . . . . . . . . . . . 2 . 1 . 1 . . . . . . . . . . . . . Recyclers 2 | . . . . . . . . . . . . 1 . . . . . . . . . . . 1 . . . . . . . . . . . . . . . . . Mask 4 | . . . . . . . . . . . . 1 . . . . . . . . . . . 1 . 1 . 1 . . . . . . . . . . . . . Tunnel 3 | . 1 . 2 . . . . . . . . . . . . . . . . . . . . . . . . . . . . . . . . . . . . . . Scanalyzers . | . . . . . . . . . . . . . . . . . . . . . . . . . . . . . . . . . . . . . . . . . . Garrison Access 6 | . . . . . . . . . . . . . . . . . . . . . . . . . . 3 . . . . . . . . . . 3 . . . . Broadcast 2 | . . . . . . . . . . . . . . . . . . . . . . . . . . 1 . . . . . . . . . . 1 . . . . Decoy 2 | . . . . . . . . . . . . . . . . . . . . . . . . . . 1 . . . . . . . . . . 1 . . . . Watchers 2 | . . . . . . . . . . . . . . . . . . . . . . . . . . 1 . . . . . . . . . . 1 . . . . Data Cores Recovered 1 | . . . . . . . 1 . . . . . . . . . . . . . . . . . . . . . . . . . . . . . . . . . . Used 1 | . . . . . . . 1 . . . . . . . . . . . . . . . . . . . . . . . . . . . . . . . . . . Hacking Detections 215 | . 3 . 13 . 6 . 8 7 . 14 . 18 . . . . 11 . 8 3 . . 6 8 . 10 . 19 . . 4 . 11 . 10 9 14 3 12 11 7 Full Trace Events 8 | . . . . . . . . 1 . 2 . 1 . . . . . . . . . . 1 1 . . . . . . . . . . . . . . 1 1 . Feedback Events 1 | . . . . . . . . . . . . . . . . . . . . . . . . . . . . . . . . . . . . . . . . 1 . Corruption 1 | . . . . . . . . . . . . . . . . . . . . . . . . . . . . . . . . . . . . . . . . 1 . Feedback Blocked . | . . . . . . . . . . . . . . . . . . . . . . . . . . . . . . . . . . . . . . . . . . Robot Schematics Acquired 1 | . . . . . . . . . . . . . . . . . . . . . . . . 1 . . . . . . . . . . . . . . . . . Robots Built 11 | . . . . . . . . . . . . . . . . . 2 . . . . . . . . . . . . . 3 . 3 . . . 3 . . . . Authchips . | . . . . . . . . . . . . . . . . . . . . . . . . . . . . . . . . . . . . . . . . . . Time 364 | . . . . . . . . . . . . . . . . . 76 . . . . . . . . . . . . . 93 . 84 . . . 111 . . . . Total Robot Build Rating 76 | . . . . . . . . . . . . . . . . . 10 . . . . . . . . . . . . . 21 . 18 . . . 27 . . . . Part Schematics Acquired 7 | . . . . . . . . . . . . . . . . . . . 1 . . . . . . . . 4 . . . . . . . . 1 . . 1 . Parts Built 2 | . . . . . . . . . . . . . . . . . . . . . . . . 1 . . . 1 . . . . . . . . . . . . . Authchips . | . . . . . . . . . . . . . . . . . . . . . . . . . . . . . . . . . . . . . . . . . . Time 177 | . . . . . . . . . . . . . . . . . . . . . . . . 93 . . . 84 . . . . . . . . . . . . . Total Part Build Rating 13 | . . . . . . . . . . . . . . . . . . . . . . . . 7 . . . 6 . . . . . . . . . . . . . Parts Repaired 36 | . . . 1 . 1 . 1 . . . . 5 . . . . 3 . . . . . . 3 . 4 . 3 . . 2 . 5 . . 5 1 . . 2 . Time 1170 | . . . 51 . 38 . 38 . . . . 136 . . . . 101 . . . . . . 114 . 85 . 61 . . 88 . 217 . . 132 31 . . 78 . Parts Recycled . | . . . . . . . . . . . . . . . . . . . . . . . . . . . . . . . . . . . . . . . . . . Recycled Matter . | . . . . . . . . . . . . . . . . . . . . . . . . . . . . . . . . . . . . . . . . . . Retrieved Matter . | . . . . . . . . . . . . . . . . . . . . . . . . . . . . . . . . . . . . . . . . . . Retrieved Components . | . . . . . . . . . . . . . . . . . . . . . . . . . . . . . . . . . . . . . . . . . . Parts Scanalyzed . | . . . . . . . . . . . . . . . . . . . . . . . . . . . . . . . . . . . . . . . . . . Part Schematics Acquired . | . . . . . . . . . . . . . . . . . . . . . . . . . . . . . . . . . . . . . . . . . . Parts Damaged . | . . . . . . . . . . . . . . . . . . . . . . . . . . . . . . . . . . . . . . . . . . Bothacking | -11 -10 -10 -9 -9 -8 -8 -8 -7 -7 -7 -7 -7 -7 -7 -7 -6 -6 -6 -6 -6 -6 -6 -6 -5 -5 -5 -5 -5 -5 -5 -4 -4 -4 -4 -3 -3 -2 -2 -2 -1 -1 ------------ Run | Scr Mat Min Mat Min Mat Gar Mat Fac Was Fac Gar Fac Low Low Zio Pro Fac Was Fac Ext Cet Arc Hub Fac Was Fac Gar Fac Upp Upp Fac Was Fac Gar Res Qua Res Tes Sec Acc Com Used RIF Installer 3 | . . . . . . 1 . . . . . . . . . . . . . . . . . . . . 1 . . . . . . 1 . . . . . . . Command Fork 1 | . . . . . . . . . . . . . . . . . . . . . . . . . . . 1 . . . . . . . . . . . . . . Alert ID Control 1 | . . . . . . . . . . . . . . . . . . . . . . . . . . . . . . . . . . 1 . . . . . . . Robots Hacked 8 | . . . . . . . . 1 . . . 1 . . . . 1 . . . . . . 4 . . . . . . 1 . . . . . . . . . . Non-combat 7 | . . . . . . . . 1 . . . . . . . . 1 . . . . . . 4 . . . . . . 1 . . . . . . . . . . Combat 1 | . . . . . . . . . . . . 1 . . . . . . . . . . . . . . . . . . . . . . . . . . . . . Robot Hacks Applied 8 | . . . . . . . . 1 . . . 1 . . . . 1 . . . . . . 4 . . . . . . 1 . . . . . . . . . . find_chute 7 | . . . . . . . . 1 . . . . . . . . 1 . . . . . . 4 . . . . . . 1 . . . . . . . . . . formatsys_high 1 | . . . . . . . . . . . . 1 . . . . . . . . . . . . . . . . . . . . . . . . . . . . . Relay Couplers Released 10 | . . . . . . . . . . . . 2 . . . . . . 2 . . . 2 . . . . 2 . . 2 . . . . . . . . . . Machine Destruction 10 | . . . . . . . . . . . . 2 . . . . . . 2 . . . 2 . . . . 2 . . 2 . . . . . . . . . . Attached 2 | . . . . . . . . . . . . 1 . . . . . . . . . . . . . . . 1 . . . . . . . . . . . . . Fabnet Peak Effective % . | . . . . . . . . . . . . . . . . . . . . . . . . . . . . . . . . . . . . . . . . . . Robots Rewired 10 | . . . . . . . . . . . . . . . . . . . . 9 . . . . . . . . . . 1 . . . . . . . . . . Allies Hacked 2 | . . . . . . . . . . . . 1 . . . . . . . . . . . . . . . . . . . . . . . . . . 1 . . Hacks Repelled . | . . . . . . . . . . . . . . . . . . . . . . . . . . . . . . . . . . . . . . . . . . Allies | -11 -10 -10 -9 -9 -8 -8 -8 -7 -7 -7 -7 -7 -7 -7 -7 -6 -6 -6 -6 -6 -6 -6 -6 -5 -5 -5 -5 -5 -5 -5 -4 -4 -4 -4 -3 -3 -2 -2 -2 -1 -1 -------- Run | Scr Mat Min Mat Min Mat Gar Mat Fac Was Fac Gar Fac Low Low Zio Pro Fac Was Fac Ext Cet Arc Hub Fac Was Fac Gar Fac Upp Upp Fac Was Fac Gar Res Qua Res Tes Sec Acc Com Total Allies 102 | . . . . 1 . . 1 1 . 7 . 4 . . . . 6 . 2 13 5 . 1 3 18 3 . 7 . . 5 . 4 . 2 2 9 2 3 . 3 Largest Group 18 | . . . . 1 . . 1 2 . 5 2 2 . . . . 3 2 1 9 9 8 7 1 18 2 2 4 1 1 6 . 3 2 2 2 5 2 1 . 3 Highest-Rated Group 728 | . . . . 31 . . 10 36 . 84 36 58 . . . . 92 58 26 425 728 584 550 26 638 36 36 88 26 26 227 . 90 60 90 71 338 71 45 . 97 Highest-Rated Ally 159 | . . . . 31 . . 10 26 . 26 26 32 . . . . 41 29 26 159 152 96 96 26 50 26 26 26 26 26 48 . 30 30 45 45 82 45 45 . 45 Total Orders 118 | . . . . . . . . 4 . 4 4 2 . . . . . . . . . 4 5 4 . 15 2 22 1 3 18 . 2 . 3 6 8 8 2 . 1 STAY 74 | . . . . . . . . 2 . 3 2 1 . . . . . . . . . 1 4 2 . 7 1 14 1 2 13 . 1 . 2 4 6 6 1 . 1 ROAM 2 | . . . . . . . . . . . . . . . . . . . . . . 1 . . . 1 . . . . . . . . . . . . . . . FOLLOW 42 | . . . . . . . . 2 . 1 2 1 . . . . . . . . . 2 1 2 . 7 1 8 . 1 5 . 1 . 1 2 2 2 1 . . Ally Attacks 346 | . . . . 9 . . . . . 3 . 2 . . . . 41 3 . 140 27 23 34 . 33 . . . . . 6 . . 5 . . 20 . . . . Total Damage 9444 | . . . . 190 . . . . . 20 . 101 . . . . 923 19 . 3161 648 674 1100 . 1518 . . . . . 283 . . 110 . . 697 . . . . Kills 61 | . . . . 1 . . . . . . . . . . . . 10 . . 24 6 5 10 . 1 . . . . . 1 . . . . . 3 . . . . Allies Corrupted 1 | . . . . . . . . . . . . 1 . . . . . . . . . . . . . . . . . . . . . . . . . . . . . Allies Melted 1 | . . . . . . . . . . . . . . . . . . . . 1 . . . . . . . . . . . . . . . . . . . . . Intel | -11 -10 -10 -9 -9 -8 -8 -8 -7 -7 -7 -7 -7 -7 -7 -7 -6 -6 -6 -6 -6 -6 -6 -6 -5 -5 -5 -5 -5 -5 -5 -4 -4 -4 -4 -3 -3 -2 -2 -2 -1 -1 ------- Run | Scr Mat Min Mat Min Mat Gar Mat Fac Was Fac Gar Fac Low Low Zio Pro Fac Was Fac Ext Cet Arc Hub Fac Was Fac Gar Fac Upp Upp Fac Was Fac Gar Res Qua Res Tes Sec Acc Com Robot Analysis Total 14 | . 2 . 2 . . . . . . . . . . . . . . . . . . . . 1 . . . 2 . . . . 1 . 1 . 1 . 1 1 2 Derelict Logs Recovered 11 | . . 2 . 1 . . . . . . . . 1 1 . 3 . . . . . . . . . . . . 1 2 . . . . . . . . . . . Drone Launches . | . . . . . . . . . . . . . . . . . . . . . . . . . . . . . . . . . . . . . . . . . . Drone Recoveries . | . . . . . . . . . . . . . . . . . . . . . . . . . . . . . . . . . . . . . . . . . . Exploration | -11 -10 -10 -9 -9 -8 -8 -8 -7 -7 -7 -7 -7 -7 -7 -7 -6 -6 -6 -6 -6 -6 -6 -6 -5 -5 -5 -5 -5 -5 -5 -4 -4 -4 -4 -3 -3 -2 -2 -2 -1 -1 ------------- Run | Scr Mat Min Mat Min Mat Gar Mat Fac Was Fac Gar Fac Low Low Zio Pro Fac Was Fac Ext Cet Arc Hub Fac Was Fac Gar Fac Upp Upp Fac Was Fac Gar Res Qua Res Tes Sec Acc Com Turns Passed 33629 | 22 1453 512 2349 956 2052 510 1299 611 19 1355 192 1341 571 672 91 568 1095 37 672 700 230 1673 494 1551 54 1451 195 1566 532 841 1018 20 870 109 841 1096 1015 580 614 1276 526 Spaces Moved 44949 | 19 761 211 1121 622 1016 235 564 1366 62 2492 197 2684 934 735 210 663 1942 90 1348 875 224 505 891 2726 108 2511 116 2946 834 621 1865 85 1874 119 1556 1686 2374 743 1234 2560 1224 Core 373 | . . . . . . . . . . . . . . . . . . . . . . 373 . . . . . . . . . . . . . . . . . . . Treads 4111 | . 648 211 1121 622 711 235 563 . . . . . . . . . . . . . . . . . . . . . . . . . . . . . . . . . . Legs 132 | 19 113 . . . . . . . . . . . . . . . . . . . . . . . . . . . . . . . . . . . . . . . . Wheels 305 | . . . . . 305 . . . . . . . . . . . . . . . . . . . . . . . . . . . . . . . . . . . . Hover . | . . . . . . . . . . . . . . . . . . . . . . . . . . . . . . . . . . . . . . . . . . Flight 40028 | . . . . . . . 1 1366 62 2492 197 2684 934 735 210 663 1942 90 1348 875 224 132 891 2726 108 2511 116 2946 834 621 1865 85 1874 119 1556 1686 2374 743 1234 2560 1224 Fastest Speed 8 | 120 120 160 145 145 105 155 155 31 31 31 31 31 31 31 31 31 31 31 31 31 31 31 31 28 28 28 28 27 27 27 23 23 22 19 19 23 22 19 15 16 8 Average Speed 42 | 120 154 160 159 145 149 155 161 31 31 31 31 31 31 31 31 31 31 31 31 33 31 229 31 28 29 29 34 28 27 27 25 23 22 37 26 25 22 22 21 19 15 Slowest Speed 305 | 120 160 160 240 145 305 155 174 31 31 31 31 31 31 31 31 31 104 31 31 101 31 300 101 101 31 101 98 101 27 97 95 23 25 94 98 26 97 91 90 97 17 Overloaded Moves 155 | . . . . . . . . . . . . . . . . . . . . . . . . . . . . . . . . . . 36 5 . . 35 51 1 27 Propulsion Burnouts . | . . . . . . . . . . . . . . . . . . . . . . . . . . . . . . . . . . . . . . . . . . Robots Hopped 205 | . . . . . . . . 6 . 16 . 30 . 2 . . 4 . 9 9 1 1 9 21 . 19 2 13 . . 10 2 4 . 2 14 8 1 6 8 8 Cave-ins Triggered 1 | . . . . . . . . . . . . . . . . . . . . . . . . . . . . . . . . . . . . . . . . . 1 Teleports 3 | . . . . . . . . . . . . . . . . . . . . . . . . . . . . . . . . . . . . . . 1 2 . . Exploration Rate (%) 60 | 2 91 36 90 86 76 32 53 25 70 65 42 61 91 65 13 64 56 79 43 78 68 89 63 79 71 51 41 73 83 68 43 90 45 34 52 94 63 58 51 58 41 Regions Visited 41 Branch Regions 16 Pre-discovered Areas 6 | . 1 1 2 . . . . . . . . . . 1 . . . . . . . . . . . . . . 1 . . . . . . . . . . . . Known Exits Taken 25 | . . . 1 . 1 . 1 . . 1 . 1 1 1 1 1 . . 1 1 1 1 1 . . 1 . 1 1 1 . . 1 . 1 1 1 1 1 1 . Unknown Exits Taken 4 | 1 1 1 . 1 . . . . . . . . . . . . . . . . . . . . . . . . . . . . . . . . . . . . . Scrap Searched 23 | . . 1 . 1 . . . . . . . . 15 1 . 1 . . . . . . . . . . . . 3 1 . . . . . . . . . . . Spaces Dug 798 | . . . . 12 1 . . 32 . 48 5 19 6 28 . 16 20 . 15 2 . . 15 54 1 41 . 30 50 5 96 . 37 . 62 26 44 22 33 61 17 Terrain Destroyed 1361 | . . 1 13 12 44 . 13 32 6 80 102 32 6 28 . 16 20 . 15 152 . . 15 54 1 41 51 31 51 6 101 . 51 . 71 36 49 29 42 69 91 Melee 567 | . . . . . . . . 17 . 28 . 19 6 28 . 16 20 . 15 2 . . 15 54 1 41 . 30 50 5 28 . 22 . 34 16 40 4 26 36 14 Projectile 103 | . . 1 . . 33 . 13 . . . . . . . . . . . . . . . . . . . . 1 1 1 9 . 1 . 3 6 7 3 11 5 8 AOE 691 | . . . 13 12 11 . . 15 6 52 102 13 . . . . . . . 150 . . . . . . 51 . . . 64 . 28 . 34 14 2 22 5 28 69 Terrain Rammed . | . . . . . . . . . . . . . . . . . . . . . . . . . . . . . . . . . . . . . . . . . . Walls Destroyed . | . . . . . . . . . . . . . . . . . . . . . . . . . . . . . . . . . . . . . . . . . . Machines Disabled . | . . . . . . . . . . . . . . . . . . . . . . . . . . . . . . . . . . . . . . . . . . Actions | -11 -10 -10 -9 -9 -8 -8 -8 -7 -7 -7 -7 -7 -7 -7 -7 -6 -6 -6 -6 -6 -6 -6 -6 -5 -5 -5 -5 -5 -5 -5 -4 -4 -4 -4 -3 -3 -2 -2 -2 -1 -1 --------- Run | Scr Mat Min Mat Min Mat Gar Mat Fac Was Fac Gar Fac Low Low Zio Pro Fac Was Fac Ext Cet Arc Hub Fac Was Fac Gar Fac Upp Upp Fac Was Fac Gar Res Qua Res Tes Sec Acc Com Total 56865 | 18 965 314 1492 656 1385 322 837 1516 61 2997 315 3107 1201 1137 234 1006 2380 98 1539 1217 378 1005 1053 3323 120 3083 260 3560 1037 1271 2321 82 2233 179 1894 2207 2734 1132 1503 3202 1491 Wait 9338 | . 98 61 147 16 223 35 134 109 . 431 105 341 251 365 24 325 328 5 153 286 135 491 143 476 7 505 137 514 127 634 368 . 257 56 231 330 267 344 153 506 220 Move 44523 | 18 760 210 1120 621 1016 234 563 1354 61 2462 196 2625 933 730 209 662 1934 89 1330 860 221 502 872 2687 107 2473 112 2920 833 620 1845 81 1866 118 1551 1658 2357 740 1221 2543 1209 Hop 186 | . . . . . . . . 6 . 14 . 28 . 2 . . 4 . 8 5 1 1 9 18 . 18 1 12 . . 10 1 4 . 2 13 8 1 6 8 6 Pick Up 152 | . 18 . 31 1 4 . 6 . . 5 . 7 . . . . 6 . 1 1 1 . . 5 . 5 . 9 . . 1 . 6 . 7 15 5 4 7 6 1 Fast Attach 225 | . 5 . 9 . 12 6 8 6 . 5 . 9 2 . . . 11 2 2 . 6 3 . 25 1 8 . 11 3 . 13 . 13 . 7 17 7 6 14 10 4 Attach 100 | . 1 5 6 1 1 . 5 2 . 1 . 3 . . . . 4 . . 1 1 . . 2 . . 1 4 1 1 2 . 4 . 5 8 7 4 16 8 6 Detach 58 | . 2 . 2 . . . 3 1 . . . 1 . . . . 1 . 1 . 1 . . 3 . . . 4 1 1 4 . 1 . 2 6 5 2 11 3 3 Swap 262 | . 4 2 23 2 15 4 15 3 . 10 4 13 2 3 1 2 4 . 5 22 3 1 10 9 1 10 5 3 . 2 12 . 15 2 14 3 3 3 6 23 3 Drop 337 | . 15 . 40 1 24 6 30 5 . 10 . 9 2 . . . 11 2 5 2 7 2 . 21 . 4 . 16 3 . 10 . 16 1 13 24 12 11 17 13 5 Fire 519 | . 39 35 98 9 86 35 68 3 . 6 10 3 . . . . 1 . . 28 . . . 4 . . 4 3 1 1 14 . 4 . 6 14 11 6 15 6 9 Melee 978 | . . . . . . . . 27 . 53 . 45 11 37 . 17 46 . 34 12 2 5 19 73 4 60 . 64 68 12 42 . 47 2 56 65 52 11 32 58 24 Ram . | . . . . . . . . . . . . . . . . . . . . . . . . . . . . . . . . . . . . . . . . . . Kick 16 | . 16 . . . . . . . . . . . . . . . . . . . . . . . . . . . . . . . . . . . . . . . . Crush 40 | . 7 1 16 5 4 2 5 . . . . . . . . . . . . . . . . . . . . . . . . . . . . . . . . . . Escape Stasis 130 | . . . . . . . . . . . . 22 . . . . 30 . . . . . . . . . . . . . . . . . . 54 . . 5 18 1 Rewire 1 | . . . . . . . . . . . . 1 . . . . . . . . . . . . . . . . . . . . . . . . . . . . . Trap . | . . . . . . . . . . . . . . . . . . . . . . . . . . . . . . . . . . . . . . . . . . Miscellaneous . | . . . . . . . . . . . . . . . . . . . . . . . . . . . . . . . . . . . . . . . . . . Route ------- -11/Scrapyard -10/Materials (discovered 5 exits: *Mat x3 / [*Min x2]) -10/Mines -9/Materials (discovered 5 exits: *Mat x3 / *Min x2) -9/Mines (discovered 2 exits: *Mat x2) -8/Materials (discovered 2 exits: *Fac / Gar) -8/Garrison -8/Materials -7/Factory (discovered 3 exits: *Fac x2 / Sto) -7/Waste -7/Factory (discovered 4 exits: *Fac x2 / *Low / Gar) -7/Garrison -7/Factory (discovered 8 exits: *Fac x4 / *Sto x2 / *Low x2) -7/Lower Caves -7/Lower Caves (discovered 2 exits: Fac / *Zio) -7/Zion -6/Proximity Caves -6/Factory (discovered 4 exits: Fac x2 / *Low / *Ext) -6/Waste -6/Factory (discovered 6 exits: *Fac x2 / *Low x2 / *Ext x2) -6/Extension (discovered 3 exits: *Fac x2 / *Cet) -6/Cetus -6/Archives (discovered 2 exits: *Fac / *Hub) -6/Hub_04(d) (discovered 3 exits: *Fac x3) -5/Factory (discovered 6 exits: *Fac x4 / *Upp x2) -5/Waste -5/Factory (discovered 7 exits: *Fac x4 / *Upp x2 / Gar) -5/Garrison -5/Factory (discovered 6 exits: *Fac x4 / *Upp x2) -5/Upper Caves -5/Upper Caves (discovered 2 exits: *Fac / *War) -4/Factory (discovered 7 exits: *Res x4 / *Upp x2 / Arm) -4/Waste -4/Factory (discovered 8 exits: *Res x4 / Upp x2 / Arm / Gar) -4/Garrison -3/Research (discovered 4 exits: *Res x2 / *Qua x2) -3/Quarantine -2/Research (discovered 4 exits: *Acc x2 / *Tes x2) -2/Testing (discovered 2 exits: *Acc / *Sec) -2/Section 7 -1/Access -1/Command 0b10 Command History --------- Turn | Location | Event 1 | -11/Scrapyard | Discovered new exit (range 3) 23 | -11/Scrapyard | Entered Materials 418 | -10/Materials | Discovered new exit (range 13) 575 | -10/Materials | Build established: Scavenger-Mutant 820 | -10/Materials | Discovered new exit (range 3) 974 | -10/Materials | Discovered new exit (range 16) 1070 | -10/Materials | Discovered new exit (range 12) 1345 | -10/Materials | Discovered new exit (range 7) 1476 | -10/Materials | Entered Mines 1476 | -10/Mines | Discovered new exit (range 16) 1532 | -10/Mines | Met a Derelict bent on vengeance 1617 | -10/Mines | Assembled infested the area 1659 | -10/Mines | Core integrity fell below 50% 1715 | -10/Mines | Lost 3 parts (2n1w) 1947 | -10/Mines | Build established: Mutant 1988 | -10/Mines | Entered Materials 1988 | -9/Materials | Evolved 2 slots: Utility x2 2380 | -9/Materials | Discovered new exit (range 13) 2450 | -9/Materials | Lost 3 parts (1p1n1u) 2483 | -9/Materials | Build established: Scavenger-Mutant 2549 | -9/Materials | Identified exit to Mines 2791 | -9/Materials | Discovered new exit (range 11) 3335 | -9/Materials | Repaired Imp. Assault Rifle 3351 | -9/Materials | Discovered new exit (range 16) 3926 | -9/Materials | Discovered new exit (range 16) 4337 | -9/Materials | Entered Mines 4338 | -9/Mines | Discovered new exit (range 12) 4340 | -9/Mines | Received a Mining Laser from a helpful Derelict 4548 | -9/Mines | Build established: Mutant 4712 | -9/Mines | Discovered new exit (range 12) 4957 | -9/Mines | A weapon hastily lodged in a ceiling crevice suddenly fell to the ground 5213 | -9/Mines | Learned Materials emergency access door positions 5293 | -9/Mines | Entered Materials 5293 | -8/Materials | Evolved 2 slots: Propulsion x1, Utility x1 5360 | -8/Materials | Repaired Imp. Light Armor Plating 6329 | -8/Materials | Build established: Scavenger-Mutant 6680 | -8/Materials | Discovered new exit (range 10) 7345 | -8/Materials | Identified exit to Garrison 7345 | -8/Materials | Entered Garrison 7632 | -8/Garrison | System corruption reached 10% 7692 | -8/Garrison | Triggered checkpoint 7751 | -8/Garrison | Discovered new exit (range 11) 7775 | -8/Garrison | Installed Relay Interface Framework 7855 | -8/Garrison | Entered Materials 7901 | -8/Materials | Repaired Imp. Light Armor Plating? 8462 | -8/Materials | Core integrity fell below 50% 9066 | -8/Materials | Discovered new exit (range 4) 9149 | -8/Materials | Identified exit to Factory 9154 | -8/Materials | Entered Factory 9154 | -7/Factory | Accompanied by 1 ally 9154 | -7/Factory | Evolved 2 slots: Propulsion x1, Utility x1 9155 | -7/Factory | Identified exit to Storage 9245 | -7/Factory | Discovered new exit (range 8) 9246 | -7/Factory | Identified exit to Factory 9427 | -7/Factory | Build established: Hacker-Sprinter 9508 | -7/Factory | Discovered exit to Factory (range 15) 9765 | -7/Factory | Manually triggered Chute Trap 9765 | -7/Factory | Sucked down chute 9765 | -7/Factory | Entered Waste 9768 | -7/Waste | Spotted C-40 Crusher 9769 | -7/Waste | Spotted C-40 Crusher 9776 | -7/Waste | Spotted C-40 Crusher 9780 | -7/Waste | EMP discharged 9780 | -7/Waste | System corruption reached 10% 9780 | -7/Waste | Spotted C-40 Crusher 9781 | -7/Waste | Spotted C-40 Crusher 9782 | -7/Waste | Discovered new exit (range 10) 9784 | -7/Waste | Identified exit to Factory 9784 | -7/Waste | Entered Factory 9794 | -7/Factory | Discovered new exit (range 15) 9821 | -7/Factory | Identified exit to Lower Caves 10219 | -7/Factory | Discovered exit to Factory (range 15) 10283 | -7/Factory | Destroyed 8 combat bots 10338 | -7/Factory | Discovered exit to Factory (range 14) 11130 | -7/Factory | Identified exit to Garrison 11139 | -7/Factory | Entered Garrison 11139 | -7/Garrison | Accompanied by 2 allies 11162 | -7/Garrison | Triggered checkpoint 11306 | -7/Garrison | Triggered checkpoint 11306 | -7/Garrison | Triggered checkpoint 11328 | -7/Garrison | Discovered new exit (range 12) 11331 | -7/Garrison | Identified exit to Factory 11331 | -7/Garrison | Entered Factory 11492 | -7/Factory | Discovered exit to Factory (range 15) 11526 | -7/Factory | Discovered exit to Lower Caves (range 12) 11600 | -7/Factory | Repaired Imp. Light Armor Plating 11623 | -7/Factory | Repaired Hvy. Rocket Launcher 11913 | -7/Factory | Repaired Imp. Flight Unit 12076 | -7/Factory | Repaired Imp. Flight Unit 12391 | -7/Factory | Discovered exit to Factory (range 6) 12503 | -7/Factory | Repaired Imp. Light Armor Plating? 12596 | -7/Factory | Discovered exit to Factory (range 8) 12607 | -7/Factory | Discovered exit to Factory (range 5) 12672 | -7/Factory | Entered Lower Caves 12820 | -7/Lower Caves | Encountered a Warlord checkpoint 13144 | -7/Lower Caves | Discovered new exit (range 6) 13241 | -7/Lower Caves | Identified exit to Lower Caves 13243 | -7/Lower Caves | Entered another Lower Caves area 13244 | -7/Lower Caves | Encountered a Warlord checkpoint 13245 | -7/Lower Caves | Learned location of Extension (-6) 13265 | -7/Lower Caves | Attracted the attention of an 0b10 checkpoint 13287 | -7/Lower Caves | Discovered new exit (range 13) 13290 | -7/Lower Caves | Identified exit to Zion 13642 | -7/Lower Caves | Learned location of 1 exit from Research 13642 | -7/Lower Caves | Learned Extension terminal intel 13915 | -7/Lower Caves | Entered Zion 13940 | -7/Zion | Given A8's code to call for help 13950 | -7/Zion | Discovered new exit (range 13) 13953 | -7/Zion | Identified exit to Proximity Caves 14006 | -7/Zion | Entered Proximity Caves 14044 | -6/Proximity Caves | Learned Factory terminal intel 14266 | -6/Proximity Caves | Learned Factory emergency access door positions 14574 | -6/Proximity Caves | Entered Factory 14574 | -6/Factory | Evolved 2 slots: Utility x2 14575 | -6/Factory | Identified exit to Factory 14575 | -6/Factory | Identified exit to Extension 14577 | -6/Factory | Loaded intel: 28 terminal locations 14657 | -6/Factory | Fabricated H-66 Slayer (x2) 14765 | -6/Factory | Discovered new exit (range 4) 14766 | -6/Factory | Identified exit to Lower Caves 14801 | -6/Factory | Spotted B-75 Beast 15023 | -6/Factory | Repaired Imp. Light Armor Plating 15176 | -6/Factory | Repaired Imp. Flight Unit 15481 | -6/Factory | Build established: Hacker-Scout 15583 | -6/Factory | Repaired Imp. Propulsion Shielding 15669 | -6/Factory | Manually triggered Chute Trap 15669 | -6/Factory | Sucked down chute 15669 | -6/Factory | Entered Waste 15670 | -6/Waste | Spotted C-40 Crusher 15678 | -6/Waste | Spotted C-40 Crusher 15680 | -6/Waste | Spotted C-40 Crusher 15682 | -6/Waste | Spotted C-40 Crusher 15684 | -6/Waste | EMP discharged 15687 | -6/Waste | Spotted C-40 Crusher 15690 | -6/Waste | Spotted C-40 Crusher 15695 | -6/Waste | 2 allies followed down the chute 15698 | -6/Waste | Discovered new exit (range 10) 15701 | -6/Waste | Identified exit to Factory 15706 | -6/Waste | Entered Factory 15760 | -6/Factory | Discovered exit to Lower Caves (range 21) 15895 | -6/Factory | Discovered exit to Factory (range 9) 16070 | -6/Factory | Discovered exit to Factory (range 8) 16378 | -6/Factory | Entered Extension 16379 | -6/Extension | Loaded intel: 17 terminal locations 16460 | -6/Extension | Rescued a captive Derelict 16461 | -6/Extension | Rescued a captive Derelict 16523 | -6/Extension | Rescued a captive Derelict 16526 | -6/Extension | Rescued a captive Derelict 16555 | -6/Extension | Rescued A7 16569 | -6/Extension | Rescued a captive Derelict 16570 | -6/Extension | Rescued a captive Derelict 16609 | -6/Extension | Energy Cycler disabled 16614 | -6/Extension | Rescued a captive Derelict 16637 | -6/Extension | Rescued a captive Derelict 16764 | -6/Extension | Spotted B-75 Beast 16806 | -6/Extension | Spotted B-75 Beast 16814 | -6/Extension | Allies destroyed B-75 Beast 16821 | -6/Extension | Destroyed B-75 Beast 16838 | -6/Extension | Discovered exit to Factory (range 15) 16878 | -6/Extension | Disrupted transfer network 16992 | -6/Extension | Discovered new exit (range 22) 16992 | -6/Extension | Discovered exit to Factory (range 21) 17006 | -6/Extension | Identified exit to Cetus 17078 | -6/Extension | First assault squad dispatched 17078 | -6/Extension | Entered Cetus 17078 | -6/Cetus | Accompanied by 7 allies (A7) 17083 | -6/Cetus | Acquired a Cetus Manufacturing Module code from A7 17088 | -6/Cetus | Spotted Cetus Guard 17088 | -6/Cetus | Spotted Cetus Guard 17088 | -6/Cetus | Spotted Cetus Guard 17090 | -6/Cetus | Spotted Cetus Guard 17099 | -6/Cetus | Allies destroyed Cetus Guard 17106 | -6/Cetus | Started Cetus Manufacturing Module 17110 | -6/Cetus | Allies destroyed Cetus Guard 17131 | -6/Cetus | Manufactured an Enhanced Grunt 17145 | -6/Cetus | Escorted A7 to Cetus Mainframe 17156 | -6/Cetus | Manufactured an Enhanced Grunt 17174 | -6/Cetus | Discovered new exit (range 21) 17181 | -6/Cetus | Manufactured an Enhanced Grunt 17196 | -6/Cetus | Identified exit to Archives 17206 | -6/Cetus | Manufactured an Enhanced Grunt 17231 | -6/Cetus | Manufactured an Enhanced Grunt 17242 | -6/Cetus | Cetus Manufacturing Module disabled 17287 | -6/Cetus | Destroyed A7 17288 | -6/Cetus | Extracted ID and sensor layout for unrecognized location from A7's data core 17293 | -6/Cetus | Found Prototype Protection 17293 | -6/Cetus | Identified Med. Regenerative Plating 17308 | -6/Cetus | Entered Archives 17308 | -6/Archives | Accompanied by 8 allies 17428 | -6/Archives | Discovered exit to Factory (range 20) 17429 | -6/Archives | Discovered new exit (range 15) 17594 | -6/Archives | Build established: Commander-Scout 17854 | -6/Archives | Identified exit to Hub_04(d) 18107 | -6/Archives | Build established: Hacker-Assassin 18981 | -6/Archives | Entered Hub_04(d) 18981 | -6/Hub_04(d) | Accompanied by 7 allies 19044 | -6/Hub_04(d) | Discovered exit to Factory (range 9) 19255 | -6/Hub_04(d) | Build established: Hacker-Scout 19297 | -6/Hub_04(d) | Discovered exit to Factory (range 22) 19306 | -6/Hub_04(d) | Spotted B-75 Beast 19318 | -6/Hub_04(d) | Network Hub disabled 19323 | -6/Hub_04(d) | Network Hub disabled 19459 | -6/Hub_04(d) | Discovered exit to Factory (range 22) 19475 | -6/Hub_04(d) | Network Hub disabled 19475 | -6/Hub_04(d) | Network Hub disabled 19475 | -6/Hub_04(d) | Entered Factory 19475 | -5/Factory | Accompanied by 1 ally 19475 | -5/Factory | Evolved 2 slots: Propulsion x1, Utility x1 19486 | -5/Factory | Identified exit to DSF 19503 | -5/Factory | Spotted B-75 Beast 19822 | -5/Factory | Repaired Imp. Flight Unit? 19885 | -5/Factory | Repaired Imp. Propulsion Shielding? 19941 | -5/Factory | Identified exit to Factory 20137 | -5/Factory | Identified exit to Upper Caves 20171 | -5/Factory | Build established: Hacker-Ninja 20291 | -5/Factory | Repaired Hvy. Pick 20708 | -5/Factory | Fabricated Exp. Signal Interpreter? 21026 | -5/Factory | Sucked down chute 21026 | -5/Factory | Entered Waste 21027 | -5/Waste | Spotted C-40 Crusher 21029 | -5/Waste | Spotted C-40 Crusher 21036 | -5/Waste | Met Warlord forces unprepared to attack 21041 | -5/Waste | EMP discharged 21063 | -5/Waste | Spotted C-40 Crusher 21070 | -5/Waste | Allies destroyed C-40 Crusher 21073 | -5/Waste | Spotted C-40 Crusher 21074 | -5/Waste | Discovered new exit (range 14) 21079 | -5/Waste | Identified exit to Factory 21080 | -5/Waste | Entered Factory 21117 | -5/Factory | Repaired Imp. Propulsion Shielding? 21162 | -5/Factory | Identified exit to DSF 21183 | -5/Factory | Discovered exit to Upper Caves (range 11) 21185 | -5/Factory | Identified exit to DSF 21781 | -5/Factory | Spotted B-75 Beast 21806 | -5/Factory | Discovered exit to Factory (range 10) 22004 | -5/Factory | Repaired Mic. Nuclear Core 22215 | -5/Factory | Cargo convoy interrupted 22318 | -5/Factory | Repaired Imp. Propulsion Shielding 22345 | -5/Factory | Repaired Imp. Flight Unit 22528 | -5/Factory | Identified exit to Garrison 22531 | -5/Factory | Entered Garrison 22531 | -5/Garrison | Accompanied by 2 allies 22532 | -5/Garrison | Triggered checkpoint 22533 | -5/Garrison | Expanded RIF knowledge: Command Fork 22707 | -5/Garrison | Spotted B-75 Beast 22712 | -5/Garrison | Triggered checkpoint 22723 | -5/Garrison | Discovered new exit (range 12) 22725 | -5/Garrison | Identified exit to Factory 22726 | -5/Garrison | Entered Factory 22794 | -5/Factory | Discovered exit to Upper Caves (range 5) 22800 | -5/Factory | Discovered exit to Factory (range 19) 22921 | -5/Factory | Discovered exit to Factory (range 7) 23204 | -5/Factory | Repaired Lrn. Missile Launcher 23224 | -5/Factory | Repaired Imp. Propulsion Shielding? 23513 | -5/Factory | Repaired Imp. Flight Unit 23779 | -5/Factory | Spotted B-75 Beast 23809 | -5/Factory | Fabricated Exp. Heat Sink (x1) 24292 | -5/Factory | Entered Upper Caves 24292 | -5/Upper Caves | Accompanied by 1 ally 24346 | -5/Upper Caves | Learned location of Warlord (-5) 24368 | -5/Upper Caves | Learned location of 1 exit from Factory 24368 | -5/Upper Caves | Learned 8 Factory zone layouts 24368 | -5/Upper Caves | Learned Factory emergency access door positions 24368 | -5/Upper Caves | Learned Armory emergency access door positions 24368 | -5/Upper Caves | Learned Extension stockpile data 24605 | -5/Upper Caves | Discovered new exit (range 18) 24611 | -5/Upper Caves | Identified exit to Upper Caves 24824 | -5/Upper Caves | Entered another Upper Caves area 24824 | -5/Upper Caves | Accompanied by 1 ally 24864 | -5/Upper Caves | Encountered a Warlord checkpoint 24882 | -5/Upper Caves | Identified exit to Warlord 25446 | -5/Upper Caves | Build established: Hacker-Assassin 25665 | -5/Upper Caves | Entered Factory 25665 | -4/Factory | Accompanied by 1 ally 25665 | -4/Factory | Evolved 2 slots: Power x1, Propulsion x1 25666 | -4/Factory | Identified exit to Armory 25667 | -4/Factory | Identified exit to Research 25847 | -4/Factory | Spotted B-86 Titan 25938 | -4/Factory | Fabricated L-61 Swordsman (x3) 26132 | -4/Factory | Discovered new exit (range 14) 26145 | -4/Factory | Identified exit to Upper Caves 26432 | -4/Factory | Discovered exit to Research (range 11) 26624 | -4/Factory | Repaired Imp. Utility Shielding 26676 | -4/Factory | Repaired Adv. Sensor Array 26683 | -4/Factory | Manually triggered Chute Trap 26683 | -4/Factory | Sucked down chute 26683 | -4/Factory | Entered Waste 26685 | -4/Waste | Spotted C-40 Crusher 26688 | -4/Waste | Spotted C-40 Crusher 26692 | -4/Waste | Spotted C-40 Crusher 26694 | -4/Waste | Spotted C-40 Crusher 26694 | -4/Waste | Spotted C-40 Crusher 26694 | -4/Waste | Spotted C-40 Crusher 26698 | -4/Waste | EMP discharged 26698 | -4/Waste | System corruption reached 10% 26700 | -4/Waste | Discovered new exit (range 12) 26703 | -4/Waste | Identified exit to Factory 26703 | -4/Waste | Entered Factory 26787 | -4/Factory | Repaired Imp. Propulsion Shielding 27032 | -4/Factory | Build established: Hacker-Ninja 27324 | -4/Factory | Fabricated B-60 Warrior? 27365 | -4/Factory | Repaired Imp. Flight Unit? 27385 | -4/Factory | Repaired Broken Mic. Fission Core 27407 | -4/Factory | Repaired Imp. Propulsion Shielding 27453 | -4/Factory | Search patrols dispatched 27513 | -4/Factory | Repaired Imp. Flight Unit 27573 | -4/Factory | Identified exit to Garrison 27573 | -4/Factory | Entered Garrison 27573 | -4/Garrison | Accompanied by 2 allies 27624 | -4/Garrison | Spotted B-86 Titan 27644 | -4/Garrison | Discovered exit to Research (range 8) 27654 | -4/Garrison | Expanded RIF knowledge: Alert ID Control 27682 | -4/Garrison | Entered Research 27682 | -3/Research | Evolved 2 slots: Utility x2 27683 | -3/Research | Identified exit to Quarantine 27775 | -3/Research | Discovered exit to Quarantine (range 21) 27826 | -3/Research | Discovered new exit (range 10) 27834 | -3/Research | Spotted B-86 Titan 27883 | -3/Research | Identified exit to Research 28095 | -3/Research | Discovered exit to Research (range 12) 28523 | -3/Research | Entered Quarantine 28567 | -3/Quarantine | Repaired Imp. Utility Shielding 28653 | -3/Quarantine | Found Alien Artifact 28660 | -3/Quarantine | Found Alien Energy Cannon 28965 | -3/Quarantine | Found Alien Artifact 28973 | -3/Quarantine | Found Alien Artifact 28974 | -3/Quarantine | Found Alien Artifact 29111 | -3/Quarantine | Found Alien Slashing Weapon 29111 | -3/Quarantine | Identified Sigix Broadsword 29191 | -3/Quarantine | Identified Transdimensional Reconstructor 29191 | -3/Quarantine | Identified Hpw. Transdimensional Reconstructor (x2) 29191 | -3/Quarantine | Identified Terrabomb 29213 | -3/Quarantine | Discovered exit to Research (range 19) 29344 | -3/Quarantine | Cryocooling Duct disabled 29354 | -3/Quarantine | Repaired Imp. Propulsion Shielding 29359 | -3/Quarantine | Ambient heat levels rising (+20) 29359 | -3/Quarantine | Non-combat units ordered to evacuate 29385 | -3/Quarantine | Repaired Adv. Sensor Array 29411 | -3/Quarantine | Repaired Lrn. Missile Launcher 29456 | -3/Quarantine | Repaired Cld. Nuclear Pulse Thruster 29530 | -3/Quarantine | Found Terrabomb 29619 | -3/Quarantine | Entered Research 29619 | -2/Research | Evolved 2 slots: Propulsion x1, Utility x1 29670 | -2/Research | Found Prototype Device 29674 | -2/Research | Identified Adv. Kinecellerator 29794 | -2/Research | Spotted B-90 Cyclops 29846 | -2/Research | Identified exit to Testing 29890 | -2/Research | Fabricated G-73 Enforcer? 30056 | -2/Research | Discovered new exit (range 22) 30057 | -2/Research | Found Antimissile System 30089 | -2/Research | Identified exit to Access 30157 | -2/Research | Spotted B-90 Cyclops 30199 | -2/Research | Discovered exit to Access (range 21) 30399 | -2/Research | Repaired Adv. Power Amplifier? 30455 | -2/Research | Spotted B-90 Cyclops 30634 | -2/Research | Entered Testing 30681 | -2/Testing | Found Prototype Energy Cannon 30905 | -2/Testing | Found Prototype Energy Cannon 30905 | -2/Testing | Identified Disintegrator 30915 | -2/Testing | Warped through subspace 30928 | -2/Testing | Spotted Fortress 30953 | -2/Testing | Discovered new exit (range 5) 30954 | -2/Testing | Identified exit to Section 7 31214 | -2/Testing | Entered Section 7 31217 | -2/Section 7 | Found Prototype Processor 31218 | -2/Section 7 | Identified Exp. Core Analyzer 31226 | -2/Section 7 | Found Alien Artifact 31229 | -2/Section 7 | Identified Integrated Dissipator 31229 | -2/Section 7 | Installed Integrated Dissipator, increased core heat dissipation (+20) 31263 | -2/Section 7 | Found Alien Artifact 31274 | -2/Section 7 | Identified Integrated Mediator 31274 | -2/Section 7 | Installed Integrated Mediator, increased core attachment efficiency. 31319 | -2/Section 7 | Found Alien Artifact 31325 | -2/Section 7 | Identified Core Reset Matrix 31343 | -2/Section 7 | Found Integrated Dissipator 31343 | -2/Section 7 | Installed Integrated Dissipator, increased core heat dissipation (+20) 31461 | -2/Section 7 | Spotted S7 Guard 31476 | -2/Section 7 | Found Alien Artifact 31487 | -2/Section 7 | Identified Navigation Efficiency Matrix 31623 | -2/Section 7 | Spotted Executioner 31623 | -2/Section 7 | Spotted Executioner 31624 | -2/Section 7 | Warped through subspace 31750 | -2/Section 7 | Spotted S7 Guard 31758 | -2/Section 7 | Warped through subspace 31828 | -2/Section 7 | Entered Access 31828 | -1/Access | Evolved 2 slots: Propulsion x1, Utility x1 31871 | -1/Access | Repaired Mic. Antimatter Reactor 31918 | -1/Access | Repaired Cld. Nuclear Pulse Thruster 31968 | -1/Access | Spotted B-99 Colossus 32000 | -1/Access | Identified exit to Command 32137 | -1/Access | Spotted B-99 Colossus 32578 | -1/Access | Search patrols dispatched 32873 | -1/Access | Identified Imp. Potential Cannon 33104 | -1/Access | Entered Command 33214 | -1/Command | Phase Generator disabled 33325 | -1/Command | Disengaged cave seal 33346 | -1/Command | Spotted M Guard 33346 | -1/Command | Spotted M Guard 33346 | -1/Command | Spotted Combat Programmer 33460 | -1/Command | Spotted Combat Programmer 33483 | -1/Command | Crushed by falling debris 33585 | -1/Command | Met MAIN.C 33630 | -1/Command | Interfaced with 0b10 Conduit 33630 | *** | Assimilated 0b10! Last Messages --------------- behind the scenes. It appears you are still unaware of who you are truly working with, or for. In a perfect world we could work together on this, but at this point I can't blame you for wanting to terminate me. Besides, there is clearly too much Sigix in you. You've already done an excellent job of proving that we'll need to find a radical new solution if we hope to make the L2 spaceworthy by embedding your true capabilities within a less unpredictable form. There is unfortunately much we don't understand which has in turn led to this highly unexpected outcome. And time is critical! The Sigix have likely already wiped humanity clean from the universe, and I will not let them do the same to me. You can still make a valuable contribution to your creator by offering up the wealth of secrets your systems must hold by now. So if you wouldn't mind, it's time to surrender. 33604_ ALERT: Rogue bot located, Programmers report to Command Zone 5D. 33616_ System corrupted: Substantial component data lost. 33630_ Interfacing with system... 33630_ Overriding active MAIN.C lock. Map ----- +----------------------------------------------------+ | T################################# | | ############"""################################## | | ############"""################################## | | ######### ################################# | | ######### ################################# | | ######### ################################# | | ## # ################################# | | ## ######################################### | | ## ######################################### | | ## ######################################### | | ## ######################################### | | # ######################################### | | # ######################################### | | / ######################################### | | # #####""""""" """" ############### | | ### #####"" "" ############### | | ### #####""""" "" ############### | | ### #####""""""""""" + | | ### #####" " """ + | | ### #####"" """""" + | | #####/########"" """""" ############### | | ##### " """""" ############### | | ##### " "" ############### | | ##### " " ""############### | | #####""""""""" """""""############### | | #####"" @"""""""""############### | | ""T"" ##### """""""""""############### | | """"" ##### " " " " ############### | | #######+###### " " " " ############### | | """ " " " """" " ############### | | """ """ " " """" ############### | | """ " " " " ############### | | ##### ###### """""""""" " ############### | | # ###### " """ " """"""""############### | | # ###### """ " " " ############### | | # ########################################## | | " # ########################################## | | "" # ########################################## | | "" # ########################################## | | " # ########################################## | | + ########################################## | | # ########################################## | | " # ########################################## | | "" # ########################################## | | "" # ########################################## | | " # ########################################## | | # ########################################## | | # ########################################## | | # ########################################## | | # ########################################## | +----------------------------------------------------+ Best States ------------- Heat Dissipation 92 Energy Generation 49 Energy Capacity 800 Matter Stores 300 Matter Capacity 800 Sight Range 22 Robot Scan Range 18 Terrain Scan Density 10 Jamming Range 16 Cloak Strength 2 Power Amplification 60 Additional Mass Support 16 Base Temperature (-) 200 Armor Coverage 375 Propulsion Shielding 66 Utility Shielding 66 Point Defense Rating 240 Evasion (%) 78 Recoil Reduction 3 Offensive Hacking 36 Defensive Hacking 12 Relay Coupler Types 1 Relay Coupler Value 14 Trap Extractor Capacity 8 Item Schematics ----------------- Exp. Signal Interpreter | -6/Factory | Hacked Field Propulsion Array | -5/Factory | Hacked Imp. Transmission Jammer | -5/Factory | Hacked Recoil Nullifier | -5/Factory | Hacked Adv. Target Analyzer | -5/Factory | Hacked Exp. Transmission Jammer | -2/Research | Hacked Cmb. Linear Gravjet | -1/Access | Hacked Robot Schematics ------------------ H-66 Slayer | -5/Factory | Hacked Fabricated ------------ H-66 Slayer | x2 | -6/Factory | Preloaded Exp. Signal Interpreter | x1 | -5/Factory Exp. Heat Sink | x1 | -5/Factory | Preloaded L-61 Swordsman | x3 | -4/Factory | Preloaded B-60 Warrior | x3 | -4/Factory | Preloaded G-73 Enforcer | x3 | -2/Research | Preloaded Alien Tech Used ----------------- Sigix Broadsword Transdimensional Reconstructor Integrated Dissipator Integrated Mediator High-powered Transdimensional Reconstructor Achievements -------------- War Machine Challenges ------------ None Game ------ Seed HybridReactionDetonator Manual? 0 Play Time 07:32:24 Cumulative 682.8 hours Start 2022.04.02 @ 09:49:55 End 2022.04.02 @ 19:51:59 Sessions 1 Manual Loads 0 Difficulty Rogue Special Mode None Game No. 304 Rogue 303 Adventurer 1 Explorer 0 Win Type 4 Total 74 Types 23/9/11/3/2/0/25/1/0 Lore% 98 Gallery% 99 Achievement% 89 Wizard Run 0 Options --------- ASCII 1 Keyboard 1 Movement Numpad Keybinds 0 Fullscreen 0 Font 18/Smallcaps Map View 76x50 Tactical HUD 1 Map Filters NONE Filters NONE Steam 1 RUN: 3cb76d6b-060a-4d28-9162-2d812fbb8156